Cogmind - Beta 13 @@@ ROGUE MODE // 2024.04.20 @ 02:47:39 Player: szymekc Result: Core destroyed Performance ------------- Evolutions (9) 4500 Regions Visited (32) 6400 Robots Destroyed (558) 2790 Value Destroyed (29870) 29870 Prototype IDs (88) 1760 Alien Tech Used (12) 2400 Bonus (23551) 23551 TOTAL SCORE: 71271 Bonus ------- Triggered High Security 1500 High Alert Combat Kills 12007 Follower Combat Kills 3254 Entered Garrisons 200 Network Hubs Disabled 200 Met Data Miner 300 Acquired ECA 300 Met Zhirov 300 Met Warlord at Base 500 MAIN.C Attacked Warlord 500 Warlord Defense Kills 776 Built Enhanced Grunts 300 A7 Reached Mainframe 300 Met R17 at Cetus 500 Used Core Reset Matrix 3000 Scanned by Researcher 500 Acquired SGEMP 2000 Friendly Fire -2886 Cogmind --------- Core Integrity 0/1600 Matter 225/300 Energy 1750/2050 System Corruption 9% Temperature Cool (0) Movement Treading (145) Location -1/Command Parts ------- > --- POWER (3) -------- Quantum Reactor Quantum Reactor (fused) Quantum Reactor > --- PROPULSION (6) --- Biometal Heavy Treads Biometal Heavy Treads Biometal Heavy Treads > --- UTILITY (13) ----- Advanced Heat Sink Advanced Heat Sink Huge Storage Unit Experimental Energy Well Experimental Energy Well Advanced Terrain Scan Processor Experimental Armor Integrity Analyzer Improved Power Shielding Propulsion Shielding SHELL Armor Graphene Brace > --- WEAPON (3) ------- Core Cannon Fusion Bomb Launcher > --- INVENTORY (25) --- Micro Antimatter Reactor Light Quantum Reactor Advanced Energy Well (500) Experimental Energy Well (600) Experimental Matter Compressor (178) Long-range Terrain Scanner Matter Filter Advanced Component Analysis Suite Long-range Tractor Beam Spacefold Activator Gamma Rifle Matter Neutralizer Micro-nuke Launcher Fusion Bomb Launcher Advanced Remote Datajack Peak State ------------ > --- POWER ------------ Improved Quantum Reactor Vortex Chain Reactor > --- PROPULSION ------- Advanced Heavy Siege Treads High-density Centrium Heavy Treads High-density Centrium Heavy Treads > --- UTILITY ---------- Advanced Cooling System Advanced Coolant Injector Huge Storage Unit Advanced Energy Well Long-range Terrain Scanner Advanced Terrain Scan Processor Experimental Armor Integrity Analyzer SHELL Armor Graphene Brace Advanced Component Analysis Suite Spacefold Activator > --- WEAPON ----------- Cooled Nova Cannon Core Cannon > --- INVENTORY -------- Micro Antimatter Reactor Light Quantum Reactor High-density Centrium Heavy Treads Experimental Energy Well Experimental Energy Well Experimental Energy Well Experimental Matter Compressor Advanced Sensor Array Long-range Tractor Beam Dimensional Node Initializer High-powered Transdimensional Reconstructor Enhanced Nova Cannon Potential Cannon Potential Cannon Fusion Bomb Launcher Fusion Bomb Launcher Advanced Remote Datajack [Rating: 249] Favorites ----------- Power Quantum Reactor Engine Cooled Ion Engine Power Core Neutrino Core Reactor Quantum Reactor Propulsion Centrium Heavy Treads Treads Centrium Heavy Treads Leg Myomer Leg Wheel Wheel Hover Unit Improved Hover Unit Flight Unit Improved VTOL Module Utility Huge Storage Unit Device Advanced Cooling System Storage Huge Storage Unit Processor Enhanced Optical Array Hackware Advanced System Shield Protection Centrium Medium Armor Plating Artifact Spacefold Activator Weapon Advanced Plasma Cannon Energy Gun EM Shotgun Energy Cannon Advanced Plasma Cannon Ballistic Gun Enhanced Autogun Ballistic Cannon Hypercooled Linear Accelerator Launcher Improved Proton Missile Launcher Special Weapon RU-N14's Throwing Claymores v3 Impact Weapon Power Maul Slashing Weapon Mining Claw Piercing Weapon Spear Special Melee Weapon Improved Datajack Build | -11 -10 -10 -8 -8 -8 -7 -7 -7 -7 -6 -6 -6 -6 -6 -6 -5 -5 -5 -5 -4 -4 -4 -4 -4 -3 -3 -3 -2 -2 -2 -1 -1 ------- Run | Yrd Mat Sub Mat Gar Sto Fac Low Low Dat Pro Fac Ext Cet Arc Hub Fac Upp Upp War Pro Fac Upp Upp Zhi Pro Res Qua Res Tes Sec Acc Com Slots Evolved 18 | . . . 4 . . 2 . . . . 2 . . . . 2 . . . . 2 . . . . 2 . 2 . . 2 . Power 2 | . . . . . . 1 . . . . . . . . . . . . . . . . . . . 1 . . . . . . Propulsion 4 | . . . 1 . . 1 . . . . . . . . . 2 . . . . . . . . . . . . . . . . Utility 11 | . . . 2 . . . . . . . 2 . . . . . . . . . 2 . . . . 1 . 2 . . 2 . Weapon 1 | . . . 1 . . . . . . . . . . . . . . . . . . . . . . . . . . . . . Parts Attached 734 | . 21 24 19 27 42 31 11 2 . 14 12 13 19 10 14 40 23 26 21 6 28 15 19 8 15 30 87 28 77 11 23 18 Power 69 | . 4 . 1 2 3 5 . . . . 1 2 2 1 2 4 1 1 1 . 3 . 1 1 1 2 9 5 9 2 3 3 Engine 12 | . 4 . 1 . 3 3 . . . . 1 . . . . . . . . . . . . . . . . . . . . . Core 10 | . . . . 2 . 2 . . . . . 2 . . . . . . . . . . 1 . 1 . 1 . 1 . . . Reactor 47 | . . . . . . . . . . . . . 2 1 2 4 1 1 1 . 3 . . 1 . 2 8 5 8 2 3 3 Propulsion 85 | . 6 5 6 7 10 12 . . . 1 3 2 2 . 2 3 . 2 . . 3 . . . . 1 9 2 5 . 4 . Treads 60 | . 6 1 . 2 9 5 . . . 1 3 2 2 . 2 3 . 2 . . 3 . . . . 1 7 2 5 . 4 . Leg 3 | . . . 1 . . . . . . . . . . . . . . . . . . . . . . . 2 . . . . . Wheel 5 | . . 4 1 . . . . . . . . . . . . . . . . . . . . . . . . . . . . . Hover 9 | . . . 4 5 . . . . . . . . . . . . . . . . . . . . . . . . . . . . Flight 8 | . . . . . 1 7 . . . . . . . . . . . . . . . . . . . . . . . . . . Utility 352 | . 3 5 4 6 5 8 5 2 . 6 7 6 7 5 4 24 11 8 14 6 20 15 12 4 13 23 49 16 36 6 13 9 Device 250 | . 1 1 2 2 1 4 5 2 . 6 4 3 4 4 2 14 9 6 6 5 14 15 11 4 11 19 43 12 27 5 4 4 Storage 24 | . 1 1 . . 2 3 . . . . . 1 1 . . 2 . . . 1 . . . . . . 4 . 5 . 2 1 Processor 14 | . . . . . 1 . . . . . 1 . . . . 2 1 . 1 . 1 . 1 . 1 1 . 3 1 . . . Hackware 7 | . . . 2 1 . . . . . . . . . . . 2 . . . . 1 . . . . . . . . . . 1 Protection 51 | . 1 3 . 3 1 1 . . . . 2 2 2 1 2 4 1 2 7 . 4 . . . 1 3 2 1 3 . 2 3 Artifact 6 | . . . . . . . . . . . . . . . . . . . . . . . . . . . . . . 1 5 . Weapon 228 | . 8 14 8 12 24 6 6 . . 7 1 3 8 4 6 9 11 15 6 . 2 . 6 3 1 4 20 5 27 3 3 6 Energy Gun 27 | . 7 2 . 3 6 . . . . . . . . . . 1 . 1 . . . . . . . 2 5 . . . . . Energy Cannon 97 | . . 6 1 3 2 3 3 . . 3 1 1 2 3 2 7 2 5 3 . 2 . 3 3 . 2 10 4 16 3 3 4 Ballistic Gun 13 | . . 1 3 . 8 . . . . . . . . . . . . 1 . . . . . . . . . . . . . . Ballistic Cannon 7 | . . . . . . . . . . . . . . . 2 . . . . . . . . . 1 . 3 1 . . . . Launcher 52 | . 1 5 1 3 7 . 3 . . 2 . 1 4 . . 1 5 6 2 . . . . . . . 1 . 8 . . 2 Special Weapon 4 | . . . . . . . . . . . . . . . . . . . 1 . . . 3 . . . . . . . . . Impact Weapon 23 | . . . 1 . 1 3 . . . 2 . 1 2 1 2 . 4 2 . . . . . . . . 1 . 3 . . . Slashing Weapon 1 | . . . 1 . . . . . . . . . . . . . . . . . . . . . . . . . . . . . Piercing Weapon 2 | . . . 1 1 . . . . . . . . . . . . . . . . . . . . . . . . . . . . Special Melee Weapon 2 | . . . . 2 . . . . . . . . . . . . . . . . . . . . . . . . . . . . Unidentified Prototypes 53 | . . . . 1 9 1 . . . . 1 . 4 . . 2 . . 5 . 1 . . 3 . . 7 4 9 6 . . Corrupted Parts 15 | . . 2 . . . . . . . . . . 3 3 4 1 . . . 2 . . . . . . . . . . . . System Corruption 63 | . . 7 . . . . . . . . . . 19 14 18 2 . . . 3 . . . . . . . . . . . . Parts Lost 77 | . 2 8 . 11 5 . . . . . 1 2 . . . 7 . 8 2 . 1 . . . . 3 5 . 10 1 10 1 Power 12 | . . . . 1 . . . . . . . . . . . 1 . 1 . . . . . . . . 1 . 4 . 4 . Propulsion 15 | . . 3 . 4 . . . . . . . 1 . . . . . 2 . . . . . . . 1 1 . 2 . 1 . Utility 30 | . . 3 . 4 3 . . . . . . 1 . . . 4 . 3 1 . 1 . . . . 1 2 . 4 1 2 . Weapon 20 | . 2 2 . 2 2 . . . . . 1 . . . . 2 . 2 1 . . . . . . 1 1 . . . 3 1 Highest Loss Streak 8 | . 1 3 . 6 3 . . . . . 1 1 . . . 3 . 8 2 . 1 . . . . 2 2 . 5 1 3 1 To Critical Strikes 3 | . . . . . . . . . . . . 1 . . . . . 2 . . . . . . . . . . . . . . Average Slot Usage (%) 86 | . 93 91 86 84 99 87 92 92 92 92 97 97 98 84 85 81 81 80 77 76 80 88 88 77 88 85 85 85 76 67 70 73 Engine 4 | . 14 14 9 . 8 8 15 15 15 15 12 9 . . . . . . 1 . . . . . . . . . . . . . Core 1 | . . . . 4 . 3 . . . . . 2 11 . . . . . . . . . 1 5 5 4 . . . . . . Reactor 5 | . . . . . . . . . . . . . 1 12 13 10 10 9 4 5 6 10 8 5 5 7 13 13 11 7 8 12 Treads 19 | . 26 17 . . 26 19 30 30 30 30 26 26 24 13 13 17 17 17 17 17 16 21 21 21 21 17 17 13 12 13 11 12 Device 13 | . 6 5 12 8 8 6 7 7 7 7 18 17 20 21 19 17 10 11 10 11 20 20 17 14 19 15 15 24 18 16 17 11 Storage 6 | . 14 7 9 9 9 7 7 7 7 7 6 6 6 6 6 4 5 5 5 5 5 5 5 5 5 4 4 4 5 8 10 14 Processor 7 | . . . . . 5 5 . . . . 4 6 6 6 6 7 11 9 7 11 10 10 13 15 15 17 14 13 13 8 8 8 Protection 4 | . 2 9 . 3 3 1 7 7 7 7 6 6 5 3 5 2 5 6 8 5 4 5 5 5 1 2 4 4 3 4 3 5 Energy Gun 2 | . 27 11 . 8 8 1 . . . . . . . . . . 5 . . . . . . . . 1 2 . . . . . Energy Cannon 10 | . . 10 4 2 . 7 14 15 15 5 13 13 4 18 11 15 5 9 11 17 15 15 11 4 14 11 8 9 9 7 7 5 Launcher 1 | . . 1 1 2 1 . . . . 9 . . 10 . . . 1 . . . . . . . . . . . . . . . Impact Weapon 2 | . . . 2 . . 4 7 7 7 7 6 6 3 . 3 . 3 4 4 . . . . . . . . . . . . . Naked Turns . | . . . . . . . . . . . . . . . . . . . . . . . . . . . . . . . . . Heaviest Build 225 | 13 24 32 31 32 66 101 103 100 100 103 97 147 158 163 164 174 161 164 166 154 165 162 164 163 169 184 184 198 225 224 214 218 Greatest Support 270 | 20 40 40 22 54 76 102 102 102 102 102 98 98 160 160 160 240 240 240 240 240 240 214 214 214 214 222 220 220 260 260 270 225 Greatest Overweight (x) 3 | . 3 2 2 3 . 3 1 . . 1 . 1 1 1 1 . . . . . . . . . . 1 1 . . . 1 . Average Overweight (x) . | . . . . . . . . . . . . . . . . . . . . . . . . . . . . . . . . . Largest Inventory Capacity 25 | . 10 10 10 10 20 20 20 20 20 20 20 25 25 25 25 25 25 25 25 25 25 25 25 25 25 25 25 25 25 25 25 25 Average Capacity 21 | . 8 7 10 10 14 16 20 20 20 20 20 20 25 25 25 24 25 25 25 25 25 25 25 25 25 25 25 25 25 25 25 25 Most Carried 25 | . 10 10 10 10 20 20 20 20 20 20 20 25 25 25 25 25 25 25 25 25 25 25 25 25 25 25 25 25 25 25 23 19 Average Carried 20 | . 7 5 8 9 13 15 19 20 20 19 19 20 24 25 24 23 24 22 22 25 24 24 24 24 24 24 24 24 24 24 19 12 Final Capacity 25 | 8 10 10 10 10 20 20 20 20 20 20 20 25 25 25 25 25 25 25 25 25 25 25 25 25 25 25 25 25 25 25 25 25 Final Carried 25 | 6 10 5 10 10 20 20 20 20 20 20 20 25 25 25 25 25 25 16 25 25 25 25 25 25 25 25 25 25 23 24 15 15 Class Distribution -------------------- 24% | Mutant 16% | Scavenger-Tank 8% | Scavenger-Skirmisher 7% | Skirmisher 7% | Scavenger-Mutant 6% | Commander-Mutant 6% | Scavenger-Gunner 5% | Gunner 5% | Scavenger-Assassin 3% | Trapper-Mutant Dominant Class ---------------- Mutant | -10/Materials Mutant | -10/Subcaves Scavenger-Mutant | -8/Materials Mutant | -8/Garrison Skirmisher | -8/Storage Sprinter | -7/Factory Mutant | -7/Lower Caves Mutant | -7/Lower Caves Mutant | -7/Data Miner Mutant | -6/Proximity Caves Trapper-Mutant | -6/Factory Commander-Mutant | -6/Extension Commander-Mutant | -6/Cetus Commander-Tank | -6/Archives Scavenger-Tank | -6/Hub_04(d) Scavenger-Tank | -5/Factory Scavenger-Assassin | -5/Upper Caves Scavenger-Assassin | -5/Upper Caves Scavenger-Mutant | -5/Warlord Scavenger-Skirmisher | -4/Proximity Caves Scavenger-Tank | -4/Factory Scavenger-Tank | -4/Upper Caves Scavenger-Tank | -4/Upper Caves Scavenger-Mutant | -4/Zhirov Scavenger-Gunner | -3/Proximity Caves Scavenger-Skirmisher | -3/Research Skirmisher | -3/Quarantine Gunner | -2/Research Gunner | -2/Testing Skirmisher | -2/Section 7 Alien-Skirmisher | -1/Access Alien-Gunner | -1/Command Resources | -11 -10 -10 -8 -8 -8 -7 -7 -7 -7 -6 -6 -6 -6 -6 -6 -5 -5 -5 -5 -4 -4 -4 -4 -4 -3 -3 -3 -2 -2 -2 -1 -1 ----------- Run | Yrd Mat Sub Mat Gar Sto Fac Low Low Dat Pro Fac Ext Cet Arc Hub Fac Upp Upp War Pro Fac Upp Upp Zhi Pro Res Qua Res Tes Sec Acc Com Matter Collected 12324 | 173 173 602 180 515 891 273 440 20 . 225 74 256 262 157 253 741 542 445 790 145 300 156 197 90 144 314 1077 632 1310 579 227 141 Remotely . | . . . . . . . . . . . . . . . . . . . . . . . . . . . . . . . . . Salvage Created 27401 | . 542 590 109 846 1594 273 622 46 . 711 121 656 356 437 411 1661 1135 664 230 273 1414 1017 796 368 523 1382 2480 704 4640 783 1418 599 Parts 1046 | . 33 39 12 41 99 4 18 4 . 30 4 23 21 17 12 54 31 17 2 7 52 38 17 2 20 52 99 30 125 49 63 31 Haulers Intercepted 8 | . 2 . . . 4 . . . . . . . . . . . . . . . . . . . . . . . 2 . . . Recyclers Shooed 5 | . 1 . . . 3 . . . . . . . . . . 1 . . . . . . . . . . . . . . . . Parts Field Recycled . | . . . . . . . . . . . . . . . . . . . . . . . . . . . . . . . . . Retrieved Matter . | . . . . . . . . . . . . . . . . . . . . . . . . . . . . . . . . . Parts Self-Destructed 154 | . . 15 . . . . 20 4 . 11 . . . . . . 16 6 . 6 . 39 16 1 20 . . . . . . . Prevented 40 | . . . . . . . 5 1 . 14 . . . . . . 13 5 . . . . . . 2 . . . . . . . Kills | -11 -10 -10 -8 -8 -8 -7 -7 -7 -7 -6 -6 -6 -6 -6 -6 -5 -5 -5 -5 -4 -4 -4 -4 -4 -3 -3 -3 -2 -2 -2 -1 -1 ------- Run | Yrd Mat Sub Mat Gar Sto Fac Low Low Dat Pro Fac Ext Cet Arc Hub Fac Upp Upp War Pro Fac Upp Upp Zhi Pro Res Qua Res Tes Sec Acc Com Combat Hostiles Destroyed 471 | . 13 16 . 27 29 1 13 1 . 15 2 7 7 1 3 21 18 20 5 4 29 15 20 . 10 18 31 8 81 12 26 18 Melee 9 | . . . . 7 . . . . . 1 . . . . . . . . . . . . . . . . . . 1 . . . Guns 36 | . 10 6 . . 10 . . . . . . . . . . . 2 . . . . . . . . 2 6 . . . . . Cannons 188 | . . 5 . 2 1 1 3 1 . . 2 5 . . 3 15 1 1 2 2 23 13 8 . 9 10 18 6 29 12 8 8 AOE 179 | . 3 5 . 18 18 . 9 . . 11 . . 4 . . 2 11 16 2 2 . . 10 . . . . . 46 . 12 10 Classes Destroyed 33 | . 4 3 2 2 5 1 1 1 . 1 . . . . . . . . 2 . . 1 . . . 1 . 1 6 . 1 1 Worker 20 | . . . . . 2 . . . . . . 1 . . 1 . . . . . 1 . . . . 1 3 . 2 . 9 . Builder 17 | . . . . . 3 . . . . . . . . . 2 1 . . . . . . . . . . 3 . 3 . 5 . Tunneler 1 | . . . 1 . . . . . . . . . . . . . . . . . . . . . . . . . . . . . Hauler 8 | . 2 . . . 4 . . . . . . . . . . . . . . . . . . . . . . . 2 . . . Recycler 10 | . . . 1 . 3 2 . . . . . 1 . . . 1 . . . . . . . . . . 1 . . . 1 . Carrier 1 | . . . . . . . . . . . . . . . . . . . . . . . . . . . . . 1 . . . Minesweeper 2 | . . . . . . . . . . 2 . . . . . . . . . . . . . . . . . . . . . . Mechanic 6 | . . . . . 1 . . . . . . . . . . . . . . . . . 1 . . . 1 . 3 . . . Operator 11 | . . . . . . 1 . . . . . . . 9 . . . . . . . . . . . 1 . . . . . . Drone 1 | . . . . . . . 1 . . . . . . . . . . . . . . . . . . . . . . . . . Watcher 20 | . 2 . 1 . 2 2 . . . . . 2 1 . . 2 . . . . 1 . . . . . . 3 1 1 1 1 Swarmer 97 | . 6 5 . 9 1 . 7 . . 8 . . 3 . . . 1 8 . . 14 3 6 . 5 . 3 . 5 . 6 7 Saboteur 5 | . . . . . . . . . . . . . . . . . . . . . . . . . . 1 . . 3 1 . . Grunt 182 | . 7 2 . 10 20 . 4 . . 4 1 1 1 . 2 8 8 6 1 4 13 10 6 . 4 3 12 . 37 6 7 5 Brawler 20 | . . . . 1 1 . . . . . . . . . . 3 2 1 2 . . . 2 . . 1 . . 7 . . . Duelist 13 | . . . . . 2 . 1 . . . . . . . . . 1 1 . . . 1 1 . . . . . 6 . . . Protector 4 | . . . . . 3 . . . . . . . . . . . . . . . . . . . . . . . 1 . . . Researcher 2 | . . . . . . . . . . . . . . . . . . . . . . . . . . . . . 2 . . . Sentry 29 | . . 1 . 2 3 1 1 . . 2 . 5 . 1 1 1 2 1 . . 1 . 2 . . . . 1 1 1 2 . Demolisher 1 | . . . . . . . . . . . . . . . . . . . 1 . . . . . . . . . . . . . Hunter 42 | . . . . 5 . . . . . . . 1 . . . 4 . 1 . . . . 2 . . 8 3 . 10 . 6 2 Programmer 47 | . . . . . . . . 1 . 1 1 . . . . 5 . 2 . . 1 . 1 . 1 5 10 4 3 4 4 4 Heavy 1 | . . . . . . . . . . . . . . . . . . . . . . . . . . . . . . . 1 . Q-Series 1 | . . . . . . . . . . . . . . . . . . . . . . . . . . . . . 1 . . . Behemoth 1 | . . . . . . . . . . . . . . . . . . . . . . 1 . . . . . . . . . . Cetus Guard 3 | . . . . . . . . . . . . . 3 . . . . . . . . . . . . . . . . . . . Quarantine Guard 3 | . . . . . . . . . . . . . . . . . . . . . . . . . . . 3 . . . . . Enhanced Grunt 2 | . . . . . . . . . . . . . . . 2 . . . . . . . . . . . . . . . . . Investigator 1 | . . . . . . . . . . . . . . . . . . . . . . . . . . . . . 1 . . . Striker 4 | . . . . . . . . . . . . . . . . . . . 1 . . . . . . . . 1 2 . . . Executioner 4 | . . . . . . . . . . . . . . . . . . . . . . . . . . . . 2 2 . . . Alpha 7 1 | . . . . . . . . . . . . . . . . . . . . . . . . . . . . . 1 . . . Fortress 1 | . . . . . . . . . . . . . . . . . . . . . . . . . . . . . 1 . . . Cobbler 1 | . . 1 . . . . . . . . . . . . . . . . . . . . . . . . . . . . . . Subdweller 8 | . . 8 . . . . . . . . . . . . . . . . . . . . . . . . . . . . . . Assembled 6 | . . . . . . . . . . . . . . . . . . . . . . . . . . . . . . . . 6 Thug 2 | . . . . . . . . . . . . . . 1 . . 1 . . . . . . . . . . . . . . . Savage 4 | . . . . . . . . . . . . . . . . . 4 . . . . . . . . . . . . . . . Troll 1 | . . . . . . . . . . . . . . . . . . . . . . . . . . . . . 1 . . . Best Kill Streak 20 | . 3 4 1 9 13 1 4 1 . 7 2 2 4 3 4 7 4 8 2 4 7 4 7 . 4 6 7 2 20 5 17 10 Combat Bots Only 18 | . 3 4 . 9 11 1 4 1 . 7 2 2 4 1 3 5 4 8 2 4 7 4 7 . 4 6 6 2 18 5 15 10 Max Kills in Single Turn 7 | . 2 2 1 3 4 1 4 1 . 4 1 1 4 2 1 2 2 4 2 2 2 1 4 . 1 2 2 2 7 3 4 7 Gunslinging 1 | . 1 . . . . . . . . . . . . . . . . . . . . . . . . . . . . . . . Exploded 7 | . 2 2 . 3 3 . 4 . . 4 . . 4 . . 1 2 4 2 2 . . 3 . . . . . 7 . 3 6 Melee 1 | . . . . 1 . . . . . 1 . . . . . . . . . . . . . . . . . . 1 . . . Uniques/NPCs Destroyed . | . . . . . . . . . . . . . . . . . . . . . . . . . . . . . . . . . Combat | -11 -10 -10 -8 -8 -8 -7 -7 -7 -7 -6 -6 -6 -6 -6 -6 -5 -5 -5 -5 -4 -4 -4 -4 -4 -3 -3 -3 -2 -2 -2 -1 -1 -------- Run | Yrd Mat Sub Mat Gar Sto Fac Low Low Dat Pro Fac Ext Cet Arc Hub Fac Upp Upp War Pro Fac Upp Upp Zhi Pro Res Qua Res Tes Sec Acc Com Hostile Shots Fired 3311 | . 34 77 13 109 77 27 100 2 . 51 40 150 12 . 37 100 36 193 49 23 220 104 72 . 64 303 254 34 607 81 377 65 Missed 928 | . 8 26 7 35 15 10 40 1 . 21 13 63 6 . 9 22 13 53 13 9 40 25 26 . 17 65 62 13 182 18 94 22 Damage Taken 40318 | . 403 1178 92 1074 1724 122 656 15 . 448 489 902 212 . 486 1322 557 2728 1051 224 1485 480 601 . 404 2146 1916 427 7939 1266 8637 1334 Core 3477 | . 124 114 43 220 177 20 130 . . 16 12 76 34 . 33 86 67 200 48 43 70 12 37 . 27 97 75 68 321 13 1188 126 Absorbed by Shields 10400 | . . . . 32 . . . . . 44 83 253 70 . 145 558 69 544 240 . 819 419 478 . 399 1332 1052 270 3232 361 . . Reduced by Siege Mode 1478 | . . . . . . . . . . . . . . . 24 46 69 107 . 36 171 33 19 . 41 223 44 . 474 23 168 . Redirected to Shielding 128 | . . . . . . . . . . . . . . . . . . . . . . . . . . . 32 55 25 . . 16 Ignored by Resistances 3279 | . . . . . . . . . . . . . . . . . . . . 60 944 616 . . 181 830 648 . . . . . Regen/Repaired (Parts) 10171 | . . . . . . . . . . . 914 . . . . 1090 . . 240 . . . . . . . 729 . 1882 2545 1538 1233 Core Remaining (%) 61 | 100 . 4 . . 20 . . . . 76 . . . . 81 . . . . 55 . . . . 87 . 85 . . 42 . . Volleys Fired 1175 | . 27 64 1 35 55 3 14 2 . 17 13 46 3 25 31 64 45 47 18 21 79 47 37 11 20 133 89 17 101 33 53 24 Largest 3 | . 2 2 1 3 3 2 2 2 . 2 2 2 3 3 3 3 3 3 3 3 3 3 3 1 3 3 3 3 3 2 2 2 Hottest 405 | . 90 120 28 193 265 196 196 196 . 196 166 166 129 263 245 256 189 223 232 286 294 294 294 98 294 290 300 345 390 300 350 405 Shots Fired 2186 | . 51 104 1 37 121 6 21 4 . 29 21 87 7 56 50 124 74 75 30 35 187 110 71 11 60 230 184 49 200 43 74 34 Gun 298 | . 49 47 1 8 100 . . . . . . . . . . 4 23 14 . . . . . . . 11 41 . . . . . Cannon 1709 | . . 41 . 5 2 6 16 4 . 8 21 86 . 56 50 115 28 39 21 35 187 110 63 11 60 219 143 49 185 43 74 32 Launcher 171 | . 2 16 . 24 19 . 5 . . 21 . 1 7 . . 5 23 22 9 . . . . . . . . . 15 . . 2 Special 8 | . . . . . . . . . . . . . . . . . . . . . . . 8 . . . . . . . . . Kinetic 105 | . . 8 1 1 70 . . . . . . . . . 16 . . 7 . . . . . . . . 1 1 . . . . Thermal 1641 | . . 41 . 5 44 6 16 4 . 8 21 86 . 45 34 86 28 39 21 35 187 110 63 11 60 193 127 37 185 43 74 32 Explosive 100 | . 2 16 . 23 . . 2 . . . . 1 1 . . . 6 15 9 . . . 8 . . . . . 15 . . 2 Electromagnetic 340 | . 49 39 . 8 7 . 3 . . 21 . . 6 11 . 38 40 14 . . . . . . . 37 56 11 . . . . Robot Hit Streak 65 | . 14 20 2 12 11 12 15 1 . 4 7 9 10 11 28 25 22 10 8 5 28 20 15 13 29 35 50 17 65 7 11 7 Robot Miss Streak 5 | . 4 2 . 2 2 . 2 2 . 1 2 2 . 2 . 4 1 2 2 1 2 4 5 . 1 4 2 3 2 3 3 3 Penetration Max 4 | . . . . . . . . . . . . . . . 1 . . 1 . . . . . . . . 1 . . 4 1 1 Secondary Targets 1 | . 1 . . . . . . . . . . . . . . . . . . . . . . . . . . . . . . . Max Gunslinging Chain 1 | . 1 . . . . . . . . . . . . . . . . . . . . . . . . . . . . . . . Shots Hit Robots 1342 | . 39 73 4 38 67 10 18 2 . 11 12 54 1 39 21 80 37 33 17 16 123 60 36 11 43 106 135 32 149 25 34 16 Core Hits 983 | . 28 39 3 47 97 4 19 1 . 25 5 19 16 16 12 41 44 46 28 9 42 24 32 9 15 32 49 13 177 15 36 40 Critical Kills 38 | . . . . . . 1 . . . 1 . 3 . 2 1 . . 2 2 . 4 1 1 . . 4 4 1 3 2 5 1 Critical Parts Destroyed 19 | . . . . . . . 1 . . 1 . . . . 2 . . 2 . . . . . . . . . . . 5 2 6 Critical Strikes 69 | . . . . 4 . 1 1 . . 2 . 3 . 2 3 1 1 4 2 . 4 1 5 . . 4 5 2 3 7 7 7 Meltdown 28 | . . . . . . . . . . . . 2 . 2 . . . 2 1 . 4 1 1 . . 4 2 1 3 . 5 . Destroy 21 | . . . . . . . . . . . . . . . 3 . . . . . . . . . . . 2 . . 7 2 7 Blast 1 | . . . . . . . . . . . . . . . . . . . . . . . . . . . . 1 . . . . Corrupt 3 | . . . . . . . . . . . . . . . . 1 1 . . . . . . . . . 1 . . . . . Smash 8 | . . . . . . 1 1 . . 2 . 1 . . . . . 2 1 . . . . . . . . . . . . . Sever 4 | . . . . . . . . . . . . . . . . . . . . . . . 4 . . . . . . . . . Impale 4 | . . . . 4 . . . . . . . . . . . . . . . . . . . . . . . . . . . . Melee Attacks 177 | . . . 7 41 12 20 7 1 . 16 18 1 12 . 4 . 1 6 17 . . . . . . . 4 . 10 . . . Kinetic 14 | . . . . . . . . . . . . . . . . . . . . . . . . . . . 4 . 10 . . . Impact 114 | . . . 1 . 10 20 7 1 . 16 18 1 12 . 4 . 1 6 17 . . . . . . . . . . . . . Slashing 3 | . . . 3 . . . . . . . . . . . . . . . . . . . . . . . . . . . . . Piercing 46 | . . . 3 41 2 . . . . . . . . . . . . . . . . . . . . . . . . . . . Sneak Attacks 17 | . . . 2 3 1 2 . 1 . 2 . 1 . . 2 . . . . . . . . . . . . . 3 . . . Combat Hostiles 5 | . . . . 3 . . . . . . . . . . . . . . . . . . . . . . . . 2 . . . Follow-up Attacks . | . . . . . . . . . . . . . . . . . . . . . . . . . . . . . . . . . Damage Inflicted 91114 | . 992 1471 161 2850 4621 607 1370 108 . 1652 352 1746 914 1397 999 3596 2586 3447 1827 934 4379 2005 3527 345 1423 3802 5275 1509 21418 2452 7973 5376 Guns 4841 | . 637 626 23 179 1294 . . . . . . . . . . 99 396 235 . . . . . . . 231 1121 . . . . . Cannons 45062 | . . 495 . 66 63 166 333 42 . 123 352 1654 . 1397 609 2651 238 428 436 560 4379 2005 1029 345 1423 3564 4154 1509 8091 2445 3962 2543 Explosions 37153 | . 352 350 . 1764 3198 . 663 . . 1080 . . 914 . 134 822 1952 2681 945 374 . . 2284 . . . . . 12900 . 4011 2729 Melee 3664 | . . . 138 841 59 441 374 66 . 449 . 80 . . 240 . . 103 446 . . . . . . . . . 427 . . . Ramming 180 | . 3 . . . 7 . . . . . . 12 . . 16 24 . . . . . . . . . 7 . . . 7 . 104 Kinetic 4161 | . . 148 23 167 3110 . . . . . . . . . 132 . . 104 . . . . . . . . . 50 427 . . . Thermal 52699 | . 141 531 . 66 931 166 333 42 . 419 352 1654 . 1079 477 2083 314 613 436 934 4379 2005 1029 345 1423 2432 3563 1087 11645 2445 7973 3802 Explosive 19664 | . 211 314 . 1597 . . 410 . . . . . 386 . . . 914 2015 945 . . . 2284 . . . . . 9118 . . 1470 Electromagnetic 10959 | . 637 478 . 179 514 . 253 . . 784 . . 528 318 134 1489 1358 612 . . . . . . . 1363 1712 372 228 . . . Impact 2237 | . . . 38 . . 441 374 66 . 449 . 80 . . 240 . . 103 446 . . . . . . . . . . . . . Slashing 260 | . . . 46 . . . . . . . . . . . . . . . . . . . 214 . . . . . . . . . Piercing 954 | . . . 54 841 59 . . . . . . . . . . . . . . . . . . . . . . . . . . . Highest Corruption 35 | . . 7 . . 5 1 . . . 2 1 2 22 34 35 14 14 26 26 3 1 1 2 2 2 13 23 1 5 9 5 9 Average Corruption 7 | . . 6 . . 4 1 . . . 1 1 1 4 24 18 4 14 19 26 1 1 1 1 2 2 7 17 1 2 6 2 5 Corruption Purged 21 | . . . . . . 1 . . . . . . . 20 . . . . . . . . . . . . . . . . . . Corruption Blocked 1 | . . . . . . . . . . . . . . . . . . . 1 . . . . . . . . . . . . . Effects 494 | . . . . . 18 1 . . . 1 . 30 24 30 31 22 67 65 3 . 4 11 13 3 13 17 92 . 26 9 5 9 Message Errors 104 | . . . . . 4 . . . . . . 9 6 5 4 5 13 11 1 . . 5 3 1 3 6 18 . 5 2 2 1 Matter Fused 110 | . . . . . 5 . . . . . . 7 5 6 7 5 16 21 1 . . 2 3 . 2 3 16 . 6 2 1 2 Heat Flow Errors 57 | . . . . . 4 . . . . . . 5 2 3 5 . 6 7 . . . 2 2 . 4 1 9 . 7 . . . Energy Discharges 59 | . . . . . 1 1 . . . 1 . 1 5 4 3 3 7 8 . . 2 1 2 . 1 . 11 . 3 1 2 2 Parts Rejected 5 | . . . . . 1 . . . . . . . . . . 1 1 . . . . . . . . . . . 2 . . . Parts Fused 9 | . . . . . . . . . . . . . 1 . . 1 1 . . . . . . . 1 . 4 . . . . 1 Data Loss (minor) 61 | . . . . . 1 . . . . . . 3 2 4 5 2 8 6 . . . . 3 2 2 3 12 . 2 4 . 2 Data Loss (major) 21 | . . . . . 2 . . . . . . . 2 1 2 . 4 4 . . . . . . . 1 4 . 1 . . . Misfires 29 | . . . . . . . . . . . . 3 . . 2 2 7 3 1 . 2 1 . . . 2 6 . . . . . Alerts 15 | . . . . . . . . . . . . 2 1 1 . 2 2 1 . . . . . . . . 5 . . . . 1 Misdirections 2 | . . . . . . . . . . . . . . . . . . 1 . . . . . . . . 1 . . . . . Weapon Failures 22 | . . . . . . . . . . . . . . 6 3 1 2 3 . . . . . . . 1 6 . . . . . Overload Shots 11 | . . . . . 1 . . . . . . . . . . . . . . . . . . . . . . . 10 . . . Effects 1 | . . . . . . . . . . . . . . . . . . . . . . . . . . . . . 1 . . . Heat Surge 1 | . . . . . . . . . . . . . . . . . . . . . . . . . . . . . 1 . . . Overflow Damage 5701 | . 5 13 . 120 81 167 219 26 . 126 8 25 . 113 167 93 . 129 307 28 209 64 14 . 29 53 51 35 860 521 1176 1062 Projectiles 3148 | . . . . . . . 12 . . 3 8 25 . 113 . 93 . 7 22 28 209 64 1 . 29 53 51 35 279 521 665 930 Explosions 1477 | . 5 13 . 47 81 . 8 . . 9 . . . . 6 . . 71 . . . . 13 . . . . . 581 . 511 132 Melee 1076 | . . . . 73 . 167 199 26 . 114 . . . . 161 . . 51 285 . . . . . . . . . . . . . Knockbacks 3 | . . . . . . . 1 . . . . . . . 1 1 . . . . . . . . . . . . . . . . Impact 3 | . . . . . . . 1 . . . . . . . 1 1 . . . . . . . . . . . . . . . . Kinetic . | . . . . . . . . . . . . . . . . . . . . . . . . . . . . . . . . . Secondary . | . . . . . . . . . . . . . . . . . . . . . . . . . . . . . . . . . Self-Inflicted Damage 2688 | . 109 98 . 103 230 . 25 . . 45 . . 21 . 94 71 27 299 . . . . . . . . . . 1099 . 246 221 Shots 60 | . 3 5 . 4 7 . 1 . . 4 . . 1 . 1 1 1 7 . . . . . . . . . . 16 . 6 3 Rammed 19 | . 2 . . . 2 . . . . . . 1 . . 2 2 . . . . . . . . . 1 . . . 1 . 8 Targets Rammed 20 | . 2 . . . 2 . . . . . . 1 . . 2 2 . . . . . . . . . 1 . . . 1 . 9 Kicked . | . . . . . . . . . . . . . . . . . . . . . . . . . . . . . . . . . Crushed 1 | . . . . . . . . . . . . . . . . . . . . . . . . . . . . . . . . 1 Highest Temperature 606 | . 138 90 5 251 331 84 352 306 . 306 90 250 145 174 223 378 344 250 180 199 333 197 299 . 293 307 218 111 374 292 136 606 Average Temperature 93 | . 46 25 5 75 99 37 120 156 . 102 20 108 72 64 102 112 97 69 68 102 123 118 93 . 88 94 63 28 59 164 48 155 Received Heat Transfer 4650 | . 81 231 45 217 522 36 138 . . 36 125 218 7 . 122 95 147 371 66 67 311 165 8 . 69 256 249 4 717 77 207 63 Effects 21 | . . . . . 1 . 1 3 . . . . . . . 1 1 . . . . . . . . 2 1 . . . . 11 Shutdowns 8 | . . . . . 1 . 1 . . . . . . . . 1 . . . . . . . . . . . . . . . 5 Energy Bleed 4 | . . . . . . . . . . . . . . . . . 1 . . . . . . . . . 1 . . . . 2 Interference 8 | . . . . . . . . 3 . . . . . . . . . . . . . . . . . 2 . . . . . 3 Short Circuit 1 | . . . . . . . . . . . . . . . . . . . . . . . . . . . . . . . . 1 Siege Activations 62 | . . . . . . . . . . . . . . . 1 5 6 4 . 1 6 5 2 . 4 7 7 . 10 1 3 . Total Turns 1375 | . . . . . . . . . . . . . . . 29 78 113 79 . 23 197 84 46 . 68 175 190 . 224 8 61 . Longest Duration 68 | . . . . . . . . . . . . . . . 29 27 32 36 . 23 67 38 29 . 37 68 60 . 48 8 31 . Robots Corrupted 20 | . . . . . . . . . . 3 . . 3 . . 4 4 1 . . . . . . . 2 2 1 . . . . Combat Hostiles 20 | . . . . . . . . . . 3 . . 3 . . 4 4 1 . . . . . . . 2 2 1 . . . . Parts Fried 84 | . 4 4 . . 1 4 6 . . 5 . . 4 5 1 13 5 . . . . . . . . 11 14 7 . . . . Impact Corruptions 34 | . . . . . . 5 9 1 . 6 . . . . 7 . . 2 4 . . . . . . . . . . . . . Robots Melted 38 | . . . . . . . . . . . . 2 . 2 . . . 2 1 . 6 2 2 . 1 4 5 1 4 . 6 . Combat Hostiles 34 | . . . . . . . . . . . . 2 . 1 . . . 2 1 . 6 2 2 . 1 4 2 1 4 . 6 . Parts Melted 135 | . . . . 3 2 . . . . 1 1 6 . 2 2 13 . 5 . . 19 11 3 . 10 14 18 5 9 . 10 1 Heat Transferred 53268 | . 200 1086 . 100 1422 250 500 50 . 400 522 2610 . 1625 739 2560 346 775 638 650 4450 3000 1550 436 2100 3359 3895 860 9646 851 6453 2195 Parts Sabotaged 3 | . . . . . . . . . . . . . . . . . . . . . . . . . . . . . 3 . . . Parts Stolen . | . . . . . . . . . . . . . . . . . . . . . . . . . . . . . . . . . Parts Stripped 76 | . . . . . . . . . . . . . . . . . . . . . . . . . . . 45 . 31 . . . Power Chain Reactions 19 | . 3 1 . . 4 . . . . 3 . . . . 1 2 2 2 . 1 . . . . . . . . . . . . Alert | -11 -10 -10 -8 -8 -8 -7 -7 -7 -7 -6 -6 -6 -6 -6 -6 -5 -5 -5 -5 -4 -4 -4 -4 -4 -3 -3 -3 -2 -2 -2 -1 -1 ------- Run | Yrd Mat Sub Mat Gar Sto Fac Low Low Dat Pro Fac Ext Cet Arc Hub Fac Upp Upp War Pro Fac Upp Upp Zhi Pro Res Qua Res Tes Sec Acc Com Peak Influence 3045 | . 215 . 157 1063 1421 784 . . . . 118 877 1051 672 1482 725 . . . . 866 . . . . 555 803 545 3045 2271 2674 2907 Initial 1712 | . . . 75 102 518 465 . . . . 21 57 490 420 165 725 . . . . . . . . . . 292 451 238 1712 1362 1698 Average 659 | . 81 . 106 691 940 588 . . . . 31 274 647 581 982 196 . . . . 362 . . . . 296 500 447 1558 1887 1945 2439 Maximum Alert Level 5 | . 1 . . 3 4 3 . . . . . 3 3 2 4 3 . . . . 3 . . . . 2 3 2 5 5 5 5 Low Security (%) 22 | . 90 . 100 4 . . . . . . 100 18 . . 3 65 . . . . 43 . . . . 27 . . . . . . Level 1 19 | . 9 . . 3 . 6 . . . . . 75 . . 5 15 . . . . 17 . . . . 31 42 37 7 . . . Level 2 24 | . . . . 32 14 76 . . . . . 4 67 100 12 12 . . . . 22 . . . . 41 29 62 1 . . . Level 3 16 | . . . . 59 59 16 . . . . . 2 32 . 37 6 . . . . 16 . . . . . 27 . 24 . . . Level 4 5 | . . . . . 25 . . . . . . . . . 41 . . . . . . . . . . . . . 21 . 39 . Level 5 7 | . . . . . . . . . . . . . . . . . . . . . . . . . . . . . 18 61 56 100 High Security 3 | . . . . . . . . . . . . . . . . . . . . . . . . . . . . . 26 38 3 . Max Security . | . . . . . . . . . . . . . . . . . . . . . . . . . . . . . . . . . Squads Dispatched 102 | . 3 . . . 8 3 . . . . 2 3 . . 4 5 . 1 . . 6 . 1 . . 8 4 1 29 11 10 3 Investigation 11 | . 1 . . . 1 2 . . . . . . . . 2 1 . . . . 2 . . . . 1 . . . . 1 . Extermination 16 | . . . . . . 1 . . . . 1 . . . . 3 . . . . 1 . . . . 3 3 . 2 1 . 1 Reinforcement 25 | . 2 . . . 1 . . . . . 1 2 . . 2 1 . . . . . . . . . 1 1 1 6 2 4 1 Assault 44 | . . . . . 5 . . . . . . 1 . . . . . 1 . . . . 1 . . 3 . . 20 8 4 1 Garrison 6 | . . . . . 1 . . . . . . . . . . . . . . . 3 . . . . . . . 1 . 1 . Intercept . | . . . . . . . . . . . . . . . . . . . . . . . . . . . . . . . . . Searches Triggered . | . . . . . . . . . . . . . . . . . . . . . . . . . . . . . . . . . Construction Impeded 8 | . . . . . 1 . . . . . . 1 . . . 1 . . . . . . . . . 1 . . 2 . 2 . Haulers Reinforced 2 | . . . . . . . . . . . . . . . . . . . . . . . . . . . . 1 1 . . . Active Scanning Responses . | . . . . . . . . . . . . . . . . . . . . . . . . . . . . . . . . . Cargo Convoy Interrupts . | . . . . . . . . . . . . . . . . . . . . . . . . . . . . . . . . . Stealth | -11 -10 -10 -8 -8 -8 -7 -7 -7 -7 -6 -6 -6 -6 -6 -6 -5 -5 -5 -5 -4 -4 -4 -4 -4 -3 -3 -3 -2 -2 -2 -1 -1 --------- Run | Yrd Mat Sub Mat Gar Sto Fac Low Low Dat Pro Fac Ext Cet Arc Hub Fac Upp Upp War Pro Fac Upp Upp Zhi Pro Res Qua Res Tes Sec Acc Com Distress Signals 34 | . 2 . 1 1 1 . . . . . 1 2 3 . . 1 . . . . 2 . . . . . 2 10 4 . 2 2 Communications Jammed 2 | . . . . . . . . . . . . . . . . 2 . . . . . . . . . . . . . . . . Distress Signals 2 | . . . . . . . . . . . . . . . . 2 . . . . . . . . . . . . . . . . Times Spotted 825 | . 25 20 14 32 46 7 22 1 . 12 7 42 20 10 16 25 20 31 27 7 41 16 20 . 12 26 37 22 126 28 64 49 Peak Tracking Total 47 | . 3 6 12 5 10 2 5 1 . 7 5 7 7 1 5 6 5 10 13 4 9 4 8 . 4 6 7 7 19 14 9 47 Tactical Retreats 32 | . . 1 . 1 1 1 4 . . 1 . 4 . . 1 1 . 5 . . 6 1 . . 1 . 1 1 . . 2 . Traps | -11 -10 -10 -8 -8 -8 -7 -7 -7 -7 -6 -6 -6 -6 -6 -6 -5 -5 -5 -5 -4 -4 -4 -4 -4 -3 -3 -3 -2 -2 -2 -1 -1 ------- Run | Yrd Mat Sub Mat Gar Sto Fac Low Low Dat Pro Fac Ext Cet Arc Hub Fac Upp Upp War Pro Fac Upp Upp Zhi Pro Res Qua Res Tes Sec Acc Com Traps Triggered 14 | . 6 . . 3 . 1 . . . . . . . . 1 1 1 . . . . . . . . . 1 . . . . . Indirectly . | . . . . . . . . . . . . . . . . . . . . . . . . . . . . . . . . . Trap Hack Attempts 71 | . . . . 71 . . . . . . . . . . . . . . . . . . . . . . . . . . . . Triggered . | . . . . . . . . . . . . . . . . . . . . . . . . . . . . . . . . . Disarmed 1 | . . . . 1 . . . . . . . . . . . . . . . . . . . . . . . . . . . . Reprogrammed 4 | . . . . 4 . . . . . . . . . . . . . . . . . . . . . . . . . . . . Reused 2 | . . . . 2 . . . . . . . . . . . . . . . . . . . . . . . . . . . . Traps Extracted . | . . . . . . . . . . . . . . . . . . . . . . . . . . . . . . . . . Installed . | . . . . . . . . . . . . . . . . . . . . . . . . . . . . . . . . . Triggered 16 | . . . . 2 . . . 1 . 2 . . . . . . . . 10 . . . . . 1 . . . . . . . Most Traps Carried 8 | . . . . . . . . . . 8 8 8 8 8 8 8 . . . . . . . . . . . . . . . . Machines | -11 -10 -10 -8 -8 -8 -7 -7 -7 -7 -6 -6 -6 -6 -6 -6 -5 -5 -5 -5 -4 -4 -4 -4 -4 -3 -3 -3 -2 -2 -2 -1 -1 ---------- Run | Yrd Mat Sub Mat Gar Sto Fac Low Low Dat Pro Fac Ext Cet Arc Hub Fac Upp Upp War Pro Fac Upp Upp Zhi Pro Res Qua Res Tes Sec Acc Com Machines Disabled 94 | . 1 . . 2 10 . . . . . 1 5 4 1 16 3 1 . . . 1 2 1 . . . 9 . 28 6 1 2 Max in Single Turn 11 | . 1 . . 1 2 . . . . . 1 1 2 . 11 2 1 . . . 1 1 1 . . . 1 . 4 1 1 1 Garrison Access 11 | . . . . . 1 2 . . . . 1 . . . 2 . . . . . 1 . . . . 1 . . 1 . 2 . Garrison Relay 1 | . . . . 1 . . . . . . . . . . . . . . . . . . . . . . . . . . . . Network Hub 1 | . . . . . . . . . . . . . . . 1 . . . . . . . . . . . . . . . . . Energy Cycler 2 | . . . . . . . . . . . . 2 . . . . . . . . . . . . . . . . . . . . Machines Repaired . | . . . . . . . . . . . . . . . . . . . . . . . . . . . . . . . . . Machines Dismantled . | . . . . . . . . . . . . . . . . . . . . . . . . . . . . . . . . . Machines Sabotaged . | . . . . . . . . . . . . . . . . . . . . . . . . . . . . . . . . . Overloaded Fab Kills . | . . . . . . . . . . . . . . . . . . . . . . . . . . . . . . . . . Hacking | -11 -10 -10 -8 -8 -8 -7 -7 -7 -7 -6 -6 -6 -6 -6 -6 -5 -5 -5 -5 -4 -4 -4 -4 -4 -3 -3 -3 -2 -2 -2 -1 -1 --------- Run | Yrd Mat Sub Mat Gar Sto Fac Low Low Dat Pro Fac Ext Cet Arc Hub Fac Upp Upp War Pro Fac Upp Upp Zhi Pro Res Qua Res Tes Sec Acc Com Machines Accessed 109 | . 6 . 3 3 10 14 . . 4 1 6 4 3 . 3 9 1 . 3 . 5 2 2 6 . 5 10 1 4 1 1 2 Terminals 58 | . 6 . 2 3 9 5 . . . 1 2 4 3 . 1 4 . . . . 1 1 . . . 4 7 1 3 1 . . Fabricators 5 | . . . . . . 1 . . . . . . . . . 2 . . . . 2 . . . . . . . . . . . Repair Stations 8 | . . . . . . . . . . . 3 . . . . 1 . . . . . . . . . . 1 . 1 . . 2 Recycling Units 6 | . . . . . . 6 . . . . . . . . . . . . . . . . . . . . . . . . . . Scanalyzers 4 | . . . . . . . . . . . . . . . . 2 . . . . 1 . . . . . 1 . . . . . Garrison Access 11 | . . . 1 . 1 2 . . . . 1 . . . 2 . . . . . 1 . . . . 1 1 . . . 1 . Total Hacks 335 | . 19 . 4 5 24 34 . . 31 5 15 7 8 . 6 62 1 . 6 . 13 7 2 25 . 17 31 4 5 1 1 2 Successful 189 | . 6 . 2 3 11 14 . . 31 5 9 3 1 . 4 37 1 . 6 . 6 7 2 25 . 2 9 2 2 . 1 . Failed 146 | . 13 . 2 2 13 20 . . . . 6 4 7 . 2 25 . . . . 7 . . . . 15 22 2 3 1 . 2 Catastrophic 43 | . 1 . 1 . 3 5 . . . . 1 2 1 . . 7 . . . . 1 . . . . 8 10 . 1 1 . 1 Database Lockouts . | . . . . . . . . . . . . . . . . . . . . . . . . . . . . . . . . . Manual 116 | . 19 . 1 2 8 24 . . . . 2 4 1 . 3 19 . . 1 . 3 . . . . 11 15 . 1 1 1 . Terminals 171 | . 19 . 3 5 22 9 . . . 5 6 7 8 . 4 31 . . . . 4 6 . . . 14 19 4 4 1 . . Fabricators 11 | . . . . . . 3 . . . . . . . . . 5 . . . . 3 . . . . . . . . . . . Repair Stations 30 | . . . . . . . . . . . 8 . . . . 12 . . . . . . . . . . 7 . 1 . . 2 Recycling Units 20 | . . . . . . 20 . . . . . . . . . . . . . . . . . . . . . . . . . . Scanalyzers 20 | . . . . . . . . . . . . . . . . 14 . . . . 2 . . . . . 4 . . . . . Garrison Access 17 | . . . 1 . 2 2 . . . . 1 . . . 2 . . . . . 4 . . . . 3 1 . . . 1 . Terminal Hacks 123 | . 3 . 1 3 10 3 . . 31 5 2 3 1 . 2 9 1 . 6 . 2 7 2 25 . . 3 2 2 . . . Record 46 | . . . . . . . . . 11 5 . . 1 . . . . . 5 . . 7 1 13 . . 2 1 . . . . Part Schematic 15 | . . . . . . . . . 11 . . . . . . . . . . . . . . 4 . . . . . . . . Robot Schematic 6 | . . . . . . . . . 6 . . . . . . . . . . . . . . . . . . . . . . . Robot Analysis 13 | . 3 . 1 . . 2 . . . . . 2 . . . 1 . . . . . . . 4 . . . . . . . . Prototype ID Bank 11 | . . . . . 1 . . . 3 . 1 1 . . . 1 . . . . . . . 4 . . . . . . . . Open Door 10 | . . . . 1 5 . . . . . . . . . . . 1 . 1 . . . 1 . . . . . 1 . . . Branch Access Points 3 | . . . . . . 1 . . . . . . . . . 1 . . . . 1 . . . . . . . . . . . Emergency Access Points 1 | . . . . . . . . . . . . . . . . 1 . . . . . . . . . . . . . . . . Alert Level 1 | . . . . . . . . . . . . . . . . 1 . . . . . . . . . . . . . . . . Unreport Threat 7 | . . . . . 3 . . . . . . . . . . 4 . . . . . . . . . . . . . . . . Locate Traps 4 | . . . . . . . . . . . 1 . . . 1 . . . . . . . . . . . 1 1 . . . . Recall Investigation 1 | . . . . . 1 . . . . . . . . . . . . . . . . . . . . . . . . . . . Zone Layout 2 | . . . . . . . . . . . . . . . 1 . . . . . 1 . . . . . . . . . . . Garrison Registry 1 | . . . . 1 . . . . . . . . . . . . . . . . . . . . . . . . . . . . Patrol Navigation 1 | . . . . 1 . . . . . . . . . . . . . . . . . . . . . . . . . . . . Protovariant Controls 1 | . . . . . . . . . . . . . . . . . . . . . . . . . . . . . 1 . . . Fabricator Hacks 7 | . . . . . . 1 . . . . . . . . . 4 . . . . 2 . . . . . . . . . . . Load Schematic 3 | . . . . . . . . . . . . . . . . 2 . . . . 1 . . . . . . . . . . . Build 4 | . . . . . . 1 . . . . . . . . . 2 . . . . 1 . . . . . . . . . . . Repair Station Hacks 19 | . . . . . . . . . . . 4 . . . . 11 . . . . . . . . . . 4 . . . . . Scan Component 10 | . . . . . . . . . . . 2 . . . . 6 . . . . . . . . . . 2 . . . . . Repair 9 | . . . . . . . . . . . 2 . . . . 5 . . . . . . . . . . 2 . . . . . Recycling Unit Hacks 4 | . . . . . . 4 . . . . . . . . . . . . . . . . . . . . . . . . . . Retrieve Components 4 | . . . . . . 4 . . . . . . . . . . . . . . . . . . . . . . . . . . Scanalyzer 11 | . . . . . . . . . . . . . . . . 10 . . . . . . . . . . 1 . . . . . Insert Component 5 | . . . . . . . . . . . . . . . . 4 . . . . . . . . . . 1 . . . . . Analyze 6 | . . . . . . . . . . . . . . . . 6 . . . . . . . . . . . . . . . . Garrison Access Hacks 2 | . . . 1 . . . . . . . 1 . . . . . . . . . . . . . . . . . . . . . Unlock Access 1 | . . . 1 . . . . . . . . . . . . . . . . . . . . . . . . . . . . . Seal Access 1 | . . . . . . . . . . . 1 . . . . . . . . . . . . . . . . . . . . . Unauthorized Hacks 23 | . 3 . . . 1 6 . . . . 2 . . . 2 3 . . . . 2 . . . . 2 1 . . . 1 . Terminals 10 | . 3 . . . . 1 . . . . 2 . . . . 3 . . . . . . . . . 1 . . . . . . Track 2 | . 1 . . . . . . . . . 1 . . . . . . . . . . . . . . . . . . . . . Assimilate 2 | . . . . . . 1 . . . . 1 . . . . . . . . . . . . . . . . . . . . . Botnet 4 | . . . . . . . . . . . . . . . . 3 . . . . . . . . . 1 . . . . . . Disrupt 1 | . 1 . . . . . . . . . . . . . . . . . . . . . . . . . . . . . . . Operators 1 | . 1 . . . . . . . . . . . . . . . . . . . . . . . . . . . . . . . Fabricators 1 | . . . . . . . . . . . . . . . . . . . . . 1 . . . . . . . . . . . Liberate 1 | . . . . . . . . . . . . . . . . . . . . . 1 . . . . . . . . . . . Repair Stations . | . . . . . . . . . . . . . . . . . . . . . . . . . . . . . . . . . Recycling Units 3 | . . . . . . 3 . . . . . . . . . . . . . . . . . . . . . . . . . . Reject 1 | . . . . . . 1 . . . . . . . . . . . . . . . . . . . . . . . . . . Mask 2 | . . . . . . 2 . . . . . . . . . . . . . . . . . . . . . . . . . . Scanalyzers 1 | . . . . . . . . . . . . . . . . . . . . . . . . . . . 1 . . . . . Researchers 1 | . . . . . . . . . . . . . . . . . . . . . . . . . . . 1 . . . . . Garrison Access 8 | . . . . . 1 2 . . . . . . . . 2 . . . . . 1 . . . . 1 . . . . 1 . Jam 8 | . . . . . 1 2 . . . . . . . . 2 . . . . . 1 . . . . 1 . . . . 1 . Data Cores Recovered 2 | . . . . . . 1 . . . . . . . . . . . . . . . . . . . 1 . . . . . . Used . | . . . . . . . . . . . . . . . . . . . . . . . . . . . . . . . . . Hacking Detections 71 | . 6 . 2 2 6 10 . . . . 5 4 3 . 1 6 . . . . 5 1 . . . 5 9 1 3 1 . 1 Full Trace Events 3 | . 1 . . . . . . . . . . . . . . 1 . . . . 1 . . . . . . . . . . . Feedback Events . | . . . . . . . . . . . . . . . . . . . . . . . . . . . . . . . . . Feedback Blocked . | . . . . . . . . . . . . . . . . . . . . . . . . . . . . . . . . . Robot Schematics Acquired 10 | . . . . . . . . . 6 . . . . . . . . . . . . . . . . . 2 . 2 . . . Robots Built . | . . . . . . . . . . . . . . . . . . . . . . . . . . . . . . . . . Authchips . | . . . . . . . . . . . . . . . . . . . . . . . . . . . . . . . . . Time . | . . . . . . . . . . . . . . . . . . . . . . . . . . . . . . . . . Total Robot Build Rating . | . . . . . . . . . . . . . . . . . . . . . . . . . . . . . . . . . Part Schematics Acquired 31 | . . . . . . . . . 11 . . . . . . 4 . . . . . . . 4 . . 7 . 5 . . . Parts Built 6 | . . . . . . 2 . . . . . . . . . 3 . . . . 1 . . . . . . . . . . . Authchips 2 | . . . . . . . . . . . . . . . . 2 . . . . . . . . . . . . . . . . Time 414 | . . . . . . 84 . . . . . . . . . 126 . . . . 204 . . . . . . . . . . . Total Part Build Rating 38 | . . . . . . 8 . . . . . . . . . 22 . . . . 8 . . . . . . . . . . . Parts Repaired 9 | . . . . . . . . . . . 2 . . . . 5 . . . . . . . . . . 2 . . . . . Time 606 | . . . . . . . . . . . 100 . . . . 418 . . . . . . . . . . 88 . . . . . Parts Recycled . | . . . . . . . . . . . . . . . . . . . . . . . . . . . . . . . . . Recycled Matter . | . . . . . . . . . . . . . . . . . . . . . . . . . . . . . . . . . Retrieved Matter . | . . . . . . . . . . . . . . . . . . . . . . . . . . . . . . . . . Retrieved Components 5 | . . . . . . 5 . . . . . . . . . . . . . . . . . . . . . . . . . . Parts Scanalyzed 4 | . . . . . . . . . . . . . . . . 4 . . . . . . . . . . . . . . . . Part Schematics Acquired 4 | . . . . . . . . . . . . . . . . 4 . . . . . . . . . . . . . . . . Parts Damaged . | . . . . . . . . . . . . . . . . . . . . . . . . . . . . . . . . . Bothacking | -11 -10 -10 -8 -8 -8 -7 -7 -7 -7 -6 -6 -6 -6 -6 -6 -5 -5 -5 -5 -4 -4 -4 -4 -4 -3 -3 -3 -2 -2 -2 -1 -1 ------------ Run | Yrd Mat Sub Mat Gar Sto Fac Low Low Dat Pro Fac Ext Cet Arc Hub Fac Upp Upp War Pro Fac Upp Upp Zhi Pro Res Qua Res Tes Sec Acc Com Used RIF Installer . | . . . . . . . . . . . . . . . . . . . . . . . . . . . . . . . . . Robots Hacked . | . . . . . . . . . . . . . . . . . . . . . . . . . . . . . . . . . Non-combat . | . . . . . . . . . . . . . . . . . . . . . . . . . . . . . . . . . Combat . | . . . . . . . . . . . . . . . . . . . . . . . . . . . . . . . . . Robot Hacks Applied . | . . . . . . . . . . . . . . . . . . . . . . . . . . . . . . . . . Relay Couplers Released 9 | . . . . 3 2 . . . . . . . . . . . . . . . . . . . . . . . 3 . 1 . Machine Destruction 9 | . . . . 3 2 . . . . . . . . . . . . . . . . . . . . . . . 3 . 1 . Fabnet Peak Effective % . | . . . . . . . . . . . . . . . . . . . . . . . . . . . . . . . . . Robots Rewired 31 | . . . . 5 . . . . . . . 22 . . . . 2 . . . . . 2 . . . . . . . . . Allies Hacked . | . . . . . . . . . . . . . . . . . . . . . . . . . . . . . . . . . Hacks Repelled . | . . . . . . . . . . . . . . . . . . . . . . . . . . . . . . . . . Allies | -11 -10 -10 -8 -8 -8 -7 -7 -7 -7 -6 -6 -6 -6 -6 -6 -5 -5 -5 -5 -4 -4 -4 -4 -4 -3 -3 -3 -2 -2 -2 -1 -1 -------- Run | Yrd Mat Sub Mat Gar Sto Fac Low Low Dat Pro Fac Ext Cet Arc Hub Fac Upp Upp War Pro Fac Upp Upp Zhi Pro Res Qua Res Tes Sec Acc Com Total Allies 77 | . . . . 5 2 1 . . . . . 27 5 . . . 2 . . . . . 2 . . . . . . . 7 26 Largest Group 16 | . . . . 4 4 1 . . . . . 16 13 11 8 1 2 1 . . . . 2 1 1 . . . . . 7 11 Highest-Rated Group 762 | . . . . 81 81 26 . . . . . 584 762 710 501 89 61 30 . . . . 60 30 30 . . . . . 100 160 Highest-Rated Ally 159 | . . . . 31 31 26 . . . . . 159 159 159 96 89 31 30 . . . . 30 30 30 . . . . . 15 15 Total Orders 19 | . . . . . . . 2 . . . . 4 8 2 1 . . . . . . . 2 . . . . . . . . . STAY 8 | . . . . . . . . . . . . 2 4 1 1 . . . . . . . . . . . . . . . . . FOLLOW 7 | . . . . . . . . . . . . 2 4 1 . . . . . . . . . . . . . . . . . . EXPLORE 4 | . . . . . . . 2 . . . . . . . . . . . . . . . 2 . . . . . . . . . Ally Attacks 570 | . . . . 11 36 . . . . . . 176 99 15 63 4 1 2 . . . . . . 7 . . . . . 34 122 Total Damage 13626 | . . . . 239 614 . . . . . . 3856 3150 542 2283 144 21 80 . . . . . . 157 . . . . . 478 2062 Kills 103 | . . . . 3 8 . . . . . . 36 17 3 19 . . 1 . . . . . . . . . . . . 4 12 Allies Corrupted 3 | . . . . . . . . . . . . 1 . . 1 . . . . . . . . . . . . . . . . 1 Allies Melted 1 | . . . . . . . . . . . . . . . . . . . . . . . . . . . . 1 . . . . Intel | -11 -10 -10 -8 -8 -8 -7 -7 -7 -7 -6 -6 -6 -6 -6 -6 -5 -5 -5 -5 -4 -4 -4 -4 -4 -3 -3 -3 -2 -2 -2 -1 -1 ------- Run | Yrd Mat Sub Mat Gar Sto Fac Low Low Dat Pro Fac Ext Cet Arc Hub Fac Upp Upp War Pro Fac Upp Upp Zhi Pro Res Qua Res Tes Sec Acc Com Robot Analysis Total 13 | . 3 . 1 . . 2 . . . . . 2 . . . 1 . . . . . . . 4 . . . . . . . . Derelict Logs Recovered 13 | . . 1 . . . . 1 2 . 2 . . . . . . . 1 . 2 . 2 2 . . . . . . . . . Drone Launches 4 | . . . . . . . 2 . . . . . . . . . . . . . . . 2 . . . . . . . . . Drone Recoveries 1 | . . . . . . . . . . . . . . . . . . . . . . . 1 . . . . . . . . . Exploration | -11 -10 -10 -8 -8 -8 -7 -7 -7 -7 -6 -6 -6 -6 -6 -6 -5 -5 -5 -5 -4 -4 -4 -4 -4 -3 -3 -3 -2 -2 -2 -1 -1 ------------- Run | Yrd Mat Sub Mat Gar Sto Fac Low Low Dat Pro Fac Ext Cet Arc Hub Fac Upp Upp War Pro Fac Upp Upp Zhi Pro Res Qua Res Tes Sec Acc Com Turns Passed 37771 | . 1156 1674 373 1206 1202 1336 1320 1293 129 1956 784 2194 1121 554 671 2112 1663 1386 1355 960 1071 1742 1179 366 1057 1556 1916 859 1765 593 750 472 Spaces Moved 20048 | 1 637 1072 431 825 593 1844 688 756 78 997 356 810 409 253 247 1021 892 714 700 542 397 923 575 196 563 555 821 492 728 297 381 254 Core 7 | . 2 . . 5 . . . . . . . . . . . . . . . . . . . . . . . . . . . . Treads 16655 | . 606 432 . 17 548 460 688 756 78 997 356 810 409 253 247 1021 892 714 700 542 397 923 575 196 563 555 821 492 728 297 333 249 Legs 30 | 1 29 . . . . . . . . . . . . . . . . . . . . . . . . . . . . . . . Wheels 822 | . . 640 182 . . . . . . . . . . . . . . . . . . . . . . . . . . . . . Hover 1097 | . . . 249 803 45 . . . . . . . . . . . . . . . . . . . . . . . . . . . Flight 1384 | . . . . . . 1384 . . . . . . . . . . . . . . . . . . . . . . . . . . Fastest Speed 26 | 120 100 95 52 48 55 26 167 167 167 167 165 165 160 160 160 160 160 160 160 160 160 165 165 165 165 158 148 150 150 160 145 145 Average Speed 149 | 120 158 133 70 64 156 62 167 167 167 183 165 204 236 168 195 160 160 160 160 160 160 165 165 165 165 180 163 150 155 160 158 145 Slowest Speed 330 | 120 200 240 190 240 170 330 247 167 167 247 167 250 250 240 240 160 160 160 160 160 165 165 165 165 165 238 238 150 160 160 240 145 Overloaded Moves . | . . . . . . . . . . . . . . . . . . . . . . . . . . . . . . . . . Propulsion Burnouts . | . . . . . . . . . . . . . . . . . . . . . . . . . . . . . . . . . Robots Hopped 5 | . . . . . . 4 . . . . . . . . . . . . . . . . . . . . . . . . . 1 Cave-ins Triggered 2 | . . . . . 1 . . . . . . . . . . . . . . . . . 1 . . . . . . . . . Teleports 39 | . . . . . . . . . . . . . . . . . . . . . . . . . . . . . 1 7 19 12 Spacefolds 20 | . . . . . . . . . . . . . . . . . . . . . . . . . . . . . . . 18 2 Exploration Rate (%) 59 | 2 96 47 44 67 85 40 88 82 68 92 10 89 91 99 40 24 97 78 92 82 12 90 83 63 75 15 89 17 67 17 21 15 Regions Visited 32 Branch Regions 22 Pre-discovered Areas 8 | . . 1 . . . . 1 1 1 . . . . . . . . . . . . 1 . 3 . . . . . . . . Known Exits Taken 16 | . . . 1 . 1 1 . . . 1 1 . . . 1 1 1 . 1 1 1 1 . . 1 1 1 1 . . . . Unknown Exits Taken 15 | 1 1 1 . . . . 1 1 1 . . 1 1 1 . . . 1 . . . . 1 1 . . . . 1 1 1 . Scrap Searched 22 | . . 2 . . . . 2 4 . 2 . . . . . . 1 1 . 2 . 3 2 . 3 . . . . . . . Spaces Dug 611 | . . . 4 14 18 11 34 . . 26 23 21 . . 161 16 18 41 10 14 7 22 11 . . 70 14 . 34 3 36 3 Terrain Destroyed 2189 | . 23 75 4 30 155 11 38 3 . 27 24 53 9 7 167 29 75 193 21 29 52 45 172 . 16 93 24 9 459 15 162 169 Melee 60 | . . . 4 . . 11 2 . . 9 18 . . . 2 . 1 2 10 . . . . . . . 1 . . . . . Projectile 583 | . . . . . 2 . 6 3 . 5 6 12 . 7 21 26 20 36 2 18 52 45 31 . 16 93 23 9 29 15 35 71 AOE 1546 | . 23 75 . 30 153 . 30 . . 13 . 41 9 . 144 3 54 155 9 11 . . 141 . . . . . 430 . 127 98 Terrain Rammed . | . . . . . . . . . . . . . . . . . . . . . . . . . . . . . . . . . Walls Destroyed . | . . . . . . . . . . . . . . . . . . . . . . . . . . . . . . . . . Machines Disabled . | . . . . . . . . . . . . . . . . . . . . . . . . . . . . . . . . . Actions | -11 -10 -10 -8 -8 -8 -7 -7 -7 -7 -6 -6 -6 -6 -6 -6 -5 -5 -5 -5 -4 -4 -4 -4 -4 -3 -3 -3 -2 -2 -2 -1 -1 --------- Run | Yrd Mat Sub Mat Gar Sto Fac Low Low Dat Pro Fac Ext Cet Arc Hub Fac Upp Upp War Pro Fac Upp Upp Zhi Pro Res Qua Res Tes Sec Acc Com Total 25451 | . 733 1207 487 1395 771 2006 814 781 77 1063 492 1263 536 323 378 1388 1045 863 872 601 676 1054 740 229 644 902 1230 581 1155 374 456 315 Wait 2004 | . 22 30 . 293 8 17 91 19 . 14 82 110 58 34 74 204 71 69 80 33 134 53 64 . 35 141 122 . 121 12 13 . Move 19974 | . 636 1071 430 824 591 1835 687 755 77 996 355 809 408 252 247 1020 891 713 699 541 396 922 574 195 562 554 820 491 727 297 350 249 Hop 5 | . . . . . . 4 . . . . . . . . . . . . . . . . . . . . . . . . . 1 Pick Up 373 | . 12 9 13 5 29 44 2 . . 2 5 14 11 . 3 40 3 1 18 . 17 7 5 4 4 18 35 15 43 6 4 4 Fast Attach 245 | . 11 8 10 12 12 11 . 2 . 1 4 2 10 8 4 10 3 . 8 . 7 3 6 8 3 7 32 13 29 9 3 9 Attach 150 | . 2 5 1 5 7 13 1 . . 1 4 5 2 . 3 10 1 8 2 . 8 . 1 1 2 4 8 5 22 3 18 8 Detach 52 | . . . . 4 1 8 . . . . 1 1 1 . . 1 . . 3 . 1 . . . . 1 6 2 6 3 6 7 Swap 350 | . 8 11 8 10 23 7 10 . . 12 5 6 7 2 7 20 19 18 11 6 13 12 12 . 10 19 48 10 28 2 5 1 Drop 471 | . 13 9 17 8 30 44 2 2 . 4 5 10 24 2 4 17 5 1 16 . 21 10 10 10 8 24 66 28 65 9 4 3 Fire 1175 | . 27 64 1 35 55 3 14 2 . 17 13 46 3 25 31 64 45 47 18 21 79 47 37 11 20 133 89 17 101 33 53 24 Melee 177 | . . . 7 41 12 20 7 1 . 16 18 1 12 . 4 . 1 6 17 . . . . . . . 4 . 10 . . . Ram . | . . . . . . . . . . . . . . . . . . . . . . . . . . . . . . . . . Kick . | . . . . . . . . . . . . . . . . . . . . . . . . . . . . . . . . . Crush 18 | . 2 . . . 2 . . . . . . 1 . . 1 2 . . . . . . . . . 1 . . . . . 9 Escape Stasis 41 | . . . . 37 1 . . . . . . . . . . . . . . . . . . . . . . . 3 . . . Rewire 345 | . . . . 50 . . . . . . . 258 . . . . 6 . . . . . 31 . . . . . . . . . Trap 71 | . . . . 71 . . . . . . . . . . . . . . . . . . . . . . . . . . . . Miscellaneous . | . . . . . . . . . . . . . . . . . . . . . . . . . . . . . . . . . Route ------- -11/Scrapyard -10/Materials (discovered 6 exits: [*Mat x3] / [*Min x2] / [*Sub]) -10/Subcaves (discovered 2 exits: *Mat x2) -8/Materials (discovered 2 exits: *Fac / Gar) -8/Garrison (discovered 3 exits: *Sto x3) -8/Storage (discovered 2 exits: *Fac / [*Rec]) -7/Factory (discovered 3 exits: *Fac / *Low x2) -7/Lower Caves -7/Lower Caves (discovered 2 exits: *Fac / *Dat) -7/Data Miner -6/Proximity Caves -6/Factory (discovered 5 exits: Fac x3 / *Ext x2) -6/Extension (discovered 2 exits: *Fac / *Cet) -6/Cetus (discovered 2 exits: *Fac / [*Arc]) -6/Archives (discovered 3 exits: *Fac / *Hub x2) -6/Hub_04(d) (discovered 2 exits: *Fac x2) -5/Factory (discovered 3 exits: *Fac / *Upp x2) -5/Upper Caves -5/Upper Caves (discovered 2 exits: *Fac / *War) -5/Warlord -4/Proximity Caves -4/Factory (discovered 3 exits: Res / *Upp x2) -4/Upper Caves -4/Upper Caves (discovered 2 exits: *Res / *Zhi) -4/Zhirov -3/Proximity Caves -3/Research (discovered 4 exits: *Res x2 / *Qua x2) -3/Quarantine -2/Research (discovered 2 exits: *Tes x2) -2/Testing (discovered 2 exits: Acc / *Sec) -2/Section 7 -1/Access -1/Command History --------- Turn | Location | Event 1 | -11/Scrapyard | Discovered new exit (range 0) 1 | -11/Scrapyard | Entered Materials 98 | -10/Materials | Discovered new exit (range 16) 169 | -10/Materials | Discovered new exit (range 10) 333 | -10/Materials | Build established: Mutant 400 | -10/Materials | Discovered new exit (range 16) 424 | -10/Materials | Discovered new exit (range 2) 576 | -10/Materials | Discovered new exit (range 3) 954 | -10/Materials | Discovered new exit (range 5) 1157 | -10/Materials | Entered Subcaves 1162 | -10/Subcaves | Learned location of Zion (-6) 1231 | -10/Subcaves | Discovered new exit (range 9) 1268 | -10/Subcaves | Core integrity fell below 50% 1454 | -10/Subcaves | A swath of the cavern ceiling suddenly collapsed 1775 | -10/Subcaves | Lost 3 parts (1n1u1w) 2076 | -10/Subcaves | Core integrity fell below 20% 2149 | -10/Subcaves | Discovered new exit (range 12) 2831 | -10/Subcaves | Entered Materials 2831 | -8/Materials | Evolved 4 slots: Propulsion x1, Utility x2, Weapon x1 3078 | -8/Materials | Discovered new exit (range 16) 3197 | -8/Materials | Identified exit to Garrison 3204 | -8/Materials | Entered Garrison 3218 | -8/Garrison | Triggered checkpoint 3251 | -8/Garrison | Triggered checkpoint 3253 | -8/Garrison | Triggered checkpoint 3282 | -8/Garrison | Triggered checkpoint 3288 | -8/Garrison | Destroyed 9 combat bots 3331 | -8/Garrison | Triggered checkpoint 3354 | -8/Garrison | Discovered new exit (range 34) 3354 | -8/Garrison | Discovered new exit (range 48) 3354 | -8/Garrison | Discovered new exit (range 69) 3567 | -8/Garrison | Lost 6 parts (3n2u1w) 3672 | -8/Garrison | Triggered checkpoint 3828 | -8/Garrison | Triggered checkpoint 4410 | -8/Garrison | Entered Storage 4410 | -8/Storage | Accompanied by 4 allies 4641 | -8/Storage | Garrison activated, responded to threat 4743 | -8/Storage | Build established: Scavenger-Tank 4810 | -8/Storage | First assault squad dispatched 4883 | -8/Storage | Used back door to open Recycling access 4883 | -8/Storage | Discovered new exit (range 3) 4902 | -8/Storage | Core integrity fell below 50% 4933 | -8/Storage | Crushed by falling debris 4964 | -8/Storage | Lost 3 parts (3u) 5253 | -8/Storage | Met a pair of Derelict thieves 5297 | -8/Storage | Destroyed 7 combat bots 5360 | -8/Storage | Destroyed 11 combat bots 5590 | -8/Storage | Discovered new exit (range 9) 5610 | -8/Storage | Identified exit to Factory 5612 | -8/Storage | Entered Factory 5612 | -7/Factory | Evolved 2 slots: Power x1, Propulsion x1 5636 | -7/Factory | Build established: Skirmisher 5887 | -7/Factory | Discovered new exit (range 16) 6157 | -7/Factory | Fabricated Mic. Nuclear Core? 6273 | -7/Factory | Discovered new exit (range 9) 6277 | -7/Factory | Identified exit to Factory 6383 | -7/Factory | Discovered new exit (range 5) 6384 | -7/Factory | Identified exit to Lower Caves 6428 | -7/Factory | Build established: Sprinter 6814 | -7/Factory | Build established: Mutant 6948 | -7/Factory | Entered Lower Caves 6949 | -7/Lower Caves | Encountered a Warlord checkpoint 7041 | -7/Lower Caves | Met a Warlord Commander 7042 | -7/Lower Caves | Learned location of Warlord (-5) 7043 | -7/Lower Caves | Warlord Commander delivered Encrypted Comm Array 7063 | -7/Lower Caves | Found Encrypted Comm Array 7242 | -7/Lower Caves | Attracted the attention of an 0b10 checkpoint 7281 | -7/Lower Caves | Learned Factory non-interactive machine intel 7345 | -7/Lower Caves | Spotted B-75 Beast 7889 | -7/Lower Caves | Discovered new exit (range 12) 8268 | -7/Lower Caves | Entered another Lower Caves area 8552 | -7/Lower Caves | Discovered exit to Factory (range 12) 8577 | -7/Lower Caves | Encountered a Warlord checkpoint 8904 | -7/Lower Caves | Learned Factory interactive machine intel 9286 | -7/Lower Caves | Discovered new exit (range 5) 9561 | -7/Lower Caves | Entered Data Miner 9561 | -7/Data Miner | Discovered new exit (range 6) 9593 | -7/Data Miner | Met Data Miner 9623 | -7/Data Miner | Learned location of Section 7 (-2) 9623 | -7/Data Miner | Acquired the access code to Warlord's prototype stash 9653 | -7/Data Miner | Received God Mode back door access code from Data Miner 9690 | -7/Data Miner | Entered Proximity Caves 9900 | -6/Proximity Caves | Learned location of 1 exit from Factory 10088 | -6/Proximity Caves | Learned 12 Factory zone layouts 10259 | -6/Proximity Caves | Attracted the attention of an 0b10 checkpoint 10541 | -6/Proximity Caves | Attracted the attention of an 0b10 base 10598 | -6/Proximity Caves | Destroyed 7 combat bots 10612 | -6/Proximity Caves | Learned Research garrison access intel 10612 | -6/Proximity Caves | Learned Extension trap positions 11646 | -6/Proximity Caves | Entered Factory 11646 | -6/Factory | Evolved 2 slots: Utility x2 11647 | -6/Factory | Identified exit to Factory 11648 | -6/Factory | Identified exit to Extension 11650 | -6/Factory | Loaded intel: 191 non-interactive machine locations 11651 | -6/Factory | Loaded intel: 54 interactive machine locations 11740 | -6/Factory | Build established: Trapper-Mutant 11879 | -6/Factory | Repaired Hrd. Heavy Armor Plating 11936 | -6/Factory | Repaired Arm. Medium Treads 12422 | -6/Factory | Discovered exit to Extension (range 6) 12430 | -6/Factory | Entered Extension 12431 | -6/Extension | Loaded intel: 29 trap records 12476 | -6/Extension | Rescued a captive Derelict 12477 | -6/Extension | Rescued a captive Derelict 12683 | -6/Extension | Lost 3 allies 12989 | -6/Extension | Rescued a captive Derelict 13212 | -6/Extension | Build established: Commander-Mutant 13377 | -6/Extension | Spotted B-75 Beast 13405 | -6/Extension | Allies destroyed B-75 Beast 13407 | -6/Extension | Spotted B-75 Beast 13431 | -6/Extension | Allies destroyed B-75 Beast 13461 | -6/Extension | Lost 3 allies 13846 | -6/Extension | Energy Cycler disabled 13850 | -6/Extension | Rescued a captive Derelict 13862 | -6/Extension | Rescued a captive Derelict 13883 | -6/Extension | Rescued A7 14529 | -6/Extension | Discovered exit to Factory (range 10) 14530 | -6/Extension | First assault squad dispatched 14538 | -6/Extension | Discovered new exit (range 7) 14592 | -6/Extension | Lost 5 allies 14624 | -6/Extension | Entered Cetus 14624 | -6/Cetus | Accompanied by 11 allies (A7) 14629 | -6/Cetus | Acquired a Cetus Manufacturing Module code from A7 14657 | -6/Cetus | Spotted Cetus Guard 14657 | -6/Cetus | Spotted Cetus Guard 14661 | -6/Cetus | Spotted Cetus Guard 14661 | -6/Cetus | Spotted Cetus Guard 14667 | -6/Cetus | Allies destroyed Cetus Guard 14670 | -6/Cetus | Destroyed Cetus Guard 14673 | -6/Cetus | Destroyed Cetus Guard 14676 | -6/Cetus | Destroyed Cetus Guard 14906 | -6/Cetus | Started Cetus Manufacturing Module 14921 | -6/Cetus | Discovered new exit (range 22) 14931 | -6/Cetus | Manufactured an Enhanced Grunt 14939 | -6/Cetus | Build established: Commander-Tank 14956 | -6/Cetus | Manufactured an Enhanced Grunt 14969 | -6/Cetus | Spotted Cetus Guard 14971 | -6/Cetus | Spotted Cetus Guard 14972 | -6/Cetus | Spotted Cetus Guard 14979 | -6/Cetus | Discovered exit to Factory (range 22) 14981 | -6/Cetus | Manufactured an Enhanced Grunt 14982 | -6/Cetus | Allies destroyed Cetus Guard 14988 | -6/Cetus | Spotted Cetus Guard 14991 | -6/Cetus | Allies destroyed Cetus Guard 15004 | -6/Cetus | Allies destroyed Cetus Guard 15006 | -6/Cetus | Manufactured an Enhanced Grunt 15007 | -6/Cetus | Allies destroyed Cetus Guard 15031 | -6/Cetus | Manufactured an Enhanced Grunt 15188 | -6/Cetus | Escorted A7 to Cetus Mainframe 15425 | -6/Cetus | Build established: Commander-Mutant 15515 | -6/Cetus | Met Revision 17 15554 | -6/Cetus | Found Prototype Device 15554 | -6/Cetus | Identified Exp. Thermal Shield 15609 | -6/Cetus | System corruption reached 10% 15745 | -6/Cetus | Entered Archives 15745 | -6/Archives | Accompanied by 11 allies (A7) 15750 | -6/Archives | Received a hacking code to weaken MAIN.C 15770 | -6/Archives | Discovered new exit (range 22) 15790 | -6/Archives | Discovered exit to Factory (range 18) 15803 | -6/Archives | Discovered new exit (range 17) 15893 | -6/Archives | System corruption reached 30% 16299 | -6/Archives | Entered Hub_04(d) 16299 | -6/Hub_04(d) | Accompanied by 8 allies 16309 | -6/Hub_04(d) | Spotted B-75 Beast 16347 | -6/Hub_04(d) | Discovered exit to Factory (range 17) 16493 | -6/Hub_04(d) | Lost 4 allies 16551 | -6/Hub_04(d) | Discovered exit to Factory (range 7) 16735 | -6/Hub_04(d) | Build established: Scavenger-Tank 16902 | -6/Hub_04(d) | Network Hub disabled 16970 | -6/Hub_04(d) | Entered Factory 16970 | -5/Factory | Accompanied by 1 ally 16970 | -5/Factory | Evolved 2 slots: Propulsion x2 17103 | -5/Factory | Identified exit to Upper Caves 17288 | -5/Factory | Fabricated Imp. Force Field (x2) 17373 | -5/Factory | Discovered new exit (range 7) 17891 | -5/Factory | Repaired Huge Storage Unit 17950 | -5/Factory | Build established: Scavenger-Skirmisher 18033 | -5/Factory | Repaired Quantum Reactor 18149 | -5/Factory | Repaired Centrium Heavy Treads 18286 | -5/Factory | Repaired Broken Centrium Heavy Treads 18386 | -5/Factory | Repaired Quantum Reactor 18599 | -5/Factory | System corruption reached 10% 18629 | -5/Factory | Lost 3 parts (1p2u) 18756 | -5/Factory | Fabricated Centrium Heavy Treads (x1) 18895 | -5/Factory | Build established: Scavenger-Tank 19082 | -5/Factory | Entered Upper Caves 19196 | -5/Upper Caves | Attracted the attention of an 0b10 checkpoint 19507 | -5/Upper Caves | Build established: Scavenger-Assassin 19958 | -5/Upper Caves | Attracted the attention of an 0b10 outpost 20480 | -5/Upper Caves | Discovered new exit (range 8) 20486 | -5/Upper Caves | Identified exit to Upper Caves 20745 | -5/Upper Caves | Entered another Upper Caves area 20745 | -5/Upper Caves | Accompanied by 1 ally 20758 | -5/Upper Caves | Discovered new exit (range 15) 20797 | -5/Upper Caves | Learned 8 Factory zone layouts 20848 | -5/Upper Caves | Identified exit to Factory 21549 | -5/Upper Caves | Spotted B-75 Beast 21703 | -5/Upper Caves | Attracted the attention of an 0b10 outpost 21752 | -5/Upper Caves | Destroyed 8 combat bots 21845 | -5/Upper Caves | Lost 8 parts (1p2n3u2w) 21987 | -5/Upper Caves | Discovered new exit (range 14) 22008 | -5/Upper Caves | Build established: Scavenger-Mutant 22131 | -5/Upper Caves | Entered Warlord 22132 | -5/Warlord | Identified exit to Proximity Caves 22184 | -5/Warlord | System corruption cleaned by Quarantine Array 22607 | -5/Warlord | Met Warlord 22625 | -5/Warlord | Warlord's base attacked by MAIN.C 22644 | -5/Warlord | Opened Warlord's prototype stash 22650 | -5/Warlord | Found Prototype Reactor 22650 | -5/Warlord | Identified Vortex Chain Reactor 22655 | -5/Warlord | Found Exp. Targeting Computer 22662 | -5/Warlord | Found Prototype Processor 22665 | -5/Warlord | Found Prototype Device 22665 | -5/Warlord | Identified Thermal Barrier 22821 | -5/Warlord | Found Prototype Special Weapon 22821 | -5/Warlord | Identified RU-N14's Throwing Claymores v3 22826 | -5/Warlord | Found RU-N14's Throwing Claymores v3 22830 | -5/Warlord | Identified Exp. Armor Integrity Analyzer 22975 | -5/Warlord | Warlord forces counterattacked 22981 | -5/Warlord | Found Prototype Piercing Weapon 23152 | -5/Warlord | Spotted Executioner 23155 | -5/Warlord | Spotted Striker 23239 | -5/Warlord | Lost 8 allies 23274 | -5/Warlord | Spotted Striker 23292 | -5/Warlord | Destroyed Striker 23300 | -5/Warlord | Warlord base infiltrated, sounded retreat 23366 | -5/Warlord | Spotted Striker 23366 | -5/Warlord | Spotted Executioner 23425 | -5/Warlord | Spotted Striker 23425 | -5/Warlord | Spotted Executioner 23483 | -5/Warlord | Lost 17 allies 23486 | -5/Warlord | Entered Proximity Caves 23754 | -4/Proximity Caves | Build established: Scavenger-Skirmisher 23972 | -4/Proximity Caves | Learned Research trap positions 24030 | -4/Proximity Caves | Learned 12 Research zone layouts 24353 | -4/Proximity Caves | Discovered exit to Factory (range 18) 24446 | -4/Proximity Caves | Entered Factory 24446 | -4/Factory | Evolved 2 slots: Utility x2 24447 | -4/Factory | Identified exit to Research 24735 | -4/Factory | Build established: Scavenger-Tank 24914 | -4/Factory | Identified exit to Upper Caves 25149 | -4/Factory | Destroyed 7 combat bots 25201 | -4/Factory | Garrison activated, responded to threat 25368 | -4/Factory | Fabricated Centrium Heavy Treads? 25517 | -4/Factory | Entered Upper Caves 25564 | -4/Upper Caves | Learned Research security intel 25988 | -4/Upper Caves | Identified exit to Upper Caves 26276 | -4/Upper Caves | Found Alien Artifact 26421 | -4/Upper Caves | Spotted B-86 Titan 26676 | -4/Upper Caves | Destroyed B-86 Titan 27176 | -4/Upper Caves | Learned Factory terminal intel 27176 | -4/Upper Caves | Learned 6 Proximity Caves zone layouts 27176 | -4/Upper Caves | Learned 6 Lower Caves zone layouts 27176 | -4/Upper Caves | Learned 8 Factory zone layouts 27192 | -4/Upper Caves | Attracted the attention of an 0b10 base 27259 | -4/Upper Caves | Entered another Upper Caves area 27304 | -4/Upper Caves | Discovered exit to Research (range 21) 27767 | -4/Upper Caves | Learned 4 Research zone layouts 27822 | -4/Upper Caves | Attracted the attention of an 0b10 outpost 27864 | -4/Upper Caves | Destroyed 7 combat bots 27943 | -4/Upper Caves | Crushed by falling debris 28394 | -4/Upper Caves | Discovered new exit (range 5) 28397 | -4/Upper Caves | Attracted the attention of an 0b10 checkpoint 28438 | -4/Upper Caves | Entered Zhirov 28438 | -4/Zhirov | Accompanied by 1 ally 28438 | -4/Zhirov | Discovered new exit (range 3) 28471 | -4/Zhirov | Build established: Scavenger-Gunner 28509 | -4/Zhirov | Met Zhirov 28539 | -4/Zhirov | Learned location of Quarantine (-3) 28539 | -4/Zhirov | Learned location of Testing (-2) 28539 | -4/Zhirov | Learned location of Command (-1) 28572 | -4/Zhirov | Zhirov requested help retrieving the SGEMP Prototype 28599 | -4/Zhirov | Found Alien Artifact 28619 | -4/Zhirov | Found Alien Artifact 28619 | -4/Zhirov | Identified Integrated Dissipator 28619 | -4/Zhirov | Installed Integrated Dissipator, increased core heat dissipation (+20) 28775 | -4/Zhirov | Build established: Scavenger-Mutant 28804 | -4/Zhirov | Entered Proximity Caves 28804 | -3/Proximity Caves | Accompanied by 1 ally 29100 | -3/Proximity Caves | Build established: Scavenger-Gunner 29861 | -3/Proximity Caves | Entered Research 29861 | -3/Research | Evolved 2 slots: Power x1, Utility x1 29862 | -3/Research | Identified exit to Quarantine 29863 | -3/Research | Identified exit to Research 29864 | -3/Research | Loaded intel: 58 trap records 29866 | -3/Research | Loaded intel: 4 garrison access locations 30140 | -3/Research | Build established: Scavenger-Skirmisher 30861 | -3/Research | First assault squad dispatched 31002 | -3/Research | System corruption reached 10% 31417 | -3/Research | Entered Quarantine 31616 | -3/Quarantine | Found Alien Artifact 31641 | -3/Quarantine | Found Alien Energy Cannon 31646 | -3/Quarantine | Identified Core Cannon 31716 | -3/Quarantine | Build established: Skirmisher 31953 | -3/Quarantine | Found Alien Artifact 31953 | -3/Quarantine | Identified Subatomic Replicator 32048 | -3/Quarantine | Found Alien Artifact 32198 | -3/Quarantine | Repaired Centrium Heavy Treads 32234 | -3/Quarantine | Repaired Com. HERF Cannon 32373 | -3/Quarantine | Found Fusion Bomb Launcher 32827 | -3/Quarantine | Cryocooling Duct disabled 32829 | -3/Quarantine | Cryocooling Duct disabled 32842 | -3/Quarantine | Ambient heat levels rising (+20) 32842 | -3/Quarantine | Non-combat units ordered to evacuate 32844 | -3/Quarantine | Ambient heat levels rising (+20) 32844 | -3/Quarantine | Combat units ordered to evacuate 32903 | -3/Quarantine | Found Alien Impact Weapon 32903 | -3/Quarantine | Identified Core Stripper 32944 | -3/Quarantine | Quarantine Guard activated 33016 | -3/Quarantine | Spotted Quarantine Guard 33019 | -3/Quarantine | Destroyed Quarantine Guard 33127 | -3/Quarantine | Discovered exit to Research (range 11) 33127 | -3/Quarantine | Spotted Quarantine Guard 33127 | -3/Quarantine | Spotted Quarantine Guard 33138 | -3/Quarantine | Destroyed Quarantine Guard 33144 | -3/Quarantine | Destroyed Quarantine Guard 33260 | -3/Quarantine | Cryocooling Duct disabled 33275 | -3/Quarantine | Ambient heat levels rising (+20) 33333 | -3/Quarantine | Entered Research 33333 | -2/Research | Warlord forces began assault on 0b10 33333 | -2/Research | Evolved 2 slots: Utility x2 33421 | -2/Research | Spotted B-90 Cyclops 33443 | -2/Research | Research machine network offline 33685 | -2/Research | Found Prototype Device 33690 | -2/Research | Found Fusion Bomb Launcher 33691 | -2/Research | Identified Exp. Actuator Array 33711 | -2/Research | Spotted B-90 Cyclops 33791 | -2/Research | Borebot progress halted 33806 | -2/Research | Borebot progress halted 33950 | -2/Research | Borebot progress halted 34003 | -2/Research | Spotted Executioner 34005 | -2/Research | Spotted Executioner 34007 | -2/Research | Discovered new exit (range 24) 34019 | -2/Research | Destroyed Executioner 34023 | -2/Research | Destroyed Executioner 34040 | -2/Research | Found Prototype Processor 34040 | -2/Research | Identified Exp. Core Analyzer 34061 | -2/Research | Spotted Striker 34068 | -2/Research | Destroyed Striker 34106 | -2/Research | Discovered new exit (range 19) 34123 | -2/Research | Lost 4 allies 34155 | -2/Research | Identified exit to Testing 34186 | -2/Research | Spotted Executioner 34186 | -2/Research | Spotted Executioner 34192 | -2/Research | Entered Testing 34308 | -2/Testing | Build established: Gunner 34432 | -2/Testing | Discovered new exit (range 20) 34459 | -2/Testing | Found Prototype Protection 34533 | -2/Testing | Found Prototype Energy Cannon 34533 | -2/Testing | Identified Cld. Nova Cannon 34600 | -2/Testing | Found Prototype Energy Cannon 34600 | -2/Testing | Identified Disintegrator 34692 | -2/Testing | First assault squad dispatched 34838 | -2/Testing | Identified SHELL Armor 34886 | -2/Testing | Destroyed 9 combat bots 35027 | -2/Testing | Found Prototype Energy Cannon 35027 | -2/Testing | Identified Potential Cannon 35114 | -2/Testing | Spotted Striker 35135 | -2/Testing | Spotted Striker 35138 | -2/Testing | Spotted Alpha 7 35139 | -2/Testing | Destroyed Striker 35148 | -2/Testing | Scanned by Researcher 35158 | -2/Testing | Destroyed Alpha 7 35161 | -2/Testing | Destroyed Striker 35216 | -2/Testing | Stole the SGEMP Prototype 35490 | -2/Testing | High security lockdown imminent 35495 | -2/Testing | Identified Transdimensional Reconstructor 35495 | -2/Testing | Warped through subspace 35511 | -2/Testing | Spotted LL-Q0Q(L) 35526 | -2/Testing | Destroyed LL-Q0Q(L) 35570 | -2/Testing | High security lockdown engaged 35571 | -2/Testing | Used Subatomic Replicator to replicate Potential Cannon 35582 | -2/Testing | Destroyed 7 combat bots 35592 | -2/Testing | Found Prototype Device 35623 | -2/Testing | Spotted Fortress 35665 | -2/Testing | Destroyed Fortress 35673 | -2/Testing | Spotted Executioner 35673 | -2/Testing | Spotted Executioner 35676 | -2/Testing | Destroyed Executioner 35686 | -2/Testing | Destroyed Executioner 35699 | -2/Testing | Found Vortex Chain Reactor 35703 | -2/Testing | Found Vortex Chain Reactor 35705 | -2/Testing | Lost 5 parts (2p2n1u) 35707 | -2/Testing | Destroyed 18 combat bots 35717 | -2/Testing | Found Centrium Heavy Armor Plating 35772 | -2/Testing | Spotted Investigator 35789 | -2/Testing | Destroyed Investigator 35820 | -2/Testing | Destroyed 17 combat bots 35823 | -2/Testing | Found Prototype Launcher 35823 | -2/Testing | Identified Containment Facilitator 35896 | -2/Testing | Discovered new exit (range 18) 35957 | -2/Testing | Entered Section 7 35970 | -2/Section 7 | Found Alien Artifact 35970 | -2/Section 7 | Identified Spacefold Activator 35976 | -2/Section 7 | Identified Beam Splitter 36121 | -2/Section 7 | Found Alien Artifact 36121 | -2/Section 7 | Identified Integrity Redistributor 36121 | -2/Section 7 | Used Integrity Redistributor, redistributed integrity from core (-314) 36122 | -2/Section 7 | Core integrity fell below 50% 36145 | -2/Section 7 | Build established: Skirmisher 36206 | -2/Section 7 | Spotted S7 Guard 36229 | -2/Section 7 | Found Alien Artifact 36229 | -2/Section 7 | Identified Navigation Efficiency Matrix 36229 | -2/Section 7 | Installed Navigation Efficiency Matrix, process failed with unexpected side effects 36324 | -2/Section 7 | High security lockdown imminent 36384 | -2/Section 7 | Found Alien Artifact 36384 | -2/Section 7 | Identified Core Reset Matrix 36384 | -2/Section 7 | Identified Dimensional Node Initializer 36384 | -2/Section 7 | Identified Hpw. Transdimensional Reconstructor 36384 | -2/Section 7 | Used Core Reset Matrix 36388 | -2/Section 7 | Sensed 18 artifacts in vicinity 36404 | -2/Section 7 | High security lockdown engaged 36507 | -2/Section 7 | Discovered new exit (range 11) 36511 | -2/Section 7 | Found Integrated Reactor 36550 | -2/Section 7 | Entered Access 36550 | -1/Access | Evolved 2 slots: Utility x2 36551 | -1/Access | Installed Integrated Reactor, increased core energy generation (+10) 36754 | -1/Access | Build established: Alien-Skirmisher 36800 | -1/Access | First assault squad dispatched 36935 | -1/Access | Destroyed 15 combat bots 36993 | -1/Access | Spotted B-99 Colossus 37120 | -1/Access | Warped through subspace 37122 | -1/Access | Garrison activated, responded to threat 37126 | -1/Access | Initialized slip node 37195 | -1/Access | Core integrity fell below 50% 37231 | -1/Access | Emitted hypermatrix ping 37236 | -1/Access | Assembled emerged from beneath the floor 37240 | -1/Access | Lost 3 parts (1p1u1w) 37272 | -1/Access | Discovered new exit (range 19) 37273 | -1/Access | High security lockdown imminent 37294 | -1/Access | Spotted B-99 Colossus 37294 | -1/Access | Spotted B-99 Colossus 37300 | -1/Access | Core integrity fell below 20% 37300 | -1/Access | Entered Command 37301 | -1/Command | Emitted hypermatrix ping 37306 | -1/Command | Assembled emerged from beneath the floor 37412 | -1/Command | Lost 6 allies 37438 | -1/Command | Assembled emerged from beneath the floor 37490 | -1/Command | Assembled emerged from beneath the floor 37490 | -1/Command | Destroyed 10 combat bots 37576 | -1/Command | First assault squad dispatched 37590 | -1/Command | Assembled emerged from beneath the floor 37602 | -1/Command | Lost 7 allies 37718 | -1/Command | Lost 9 allies 37772 | -1/Command | Core destroyed Last Messages --------------- 37723_ P-80 Master destroyed. 37723_ Beam penetrates Earth. 37723_ Beam penetrates Wall. 37724_ K-01 Serf collects debris. 37728_ Navigation matrix triggers involuntary quantum shift. 37737_ System corrupted: Component data lost. 37752_ Acquired Unknown Device. 37752_ Identified Adv. Heat Sink. 37755_ Discarded System Shield. 37756_ Acquired Adv. Heat Sink. 37762_ Dropped Energy Filter. 37762_ Acquired Unknown Protection. 37762_ Identified Propulsion Shielding. 37764_ W-44 Eye sends out distress signal. 37768_ Navigation matrix triggers involuntary quantum shift. 37768_ S-43 Plague destroyed. 37770_ G-73 Enforcer springs to life. 37772_ G-73 Enforcer destroyed. Map ----- +----------------------------------------------------+ | ?????????????????????????????????????????????????? | | ?????????????????????????????????????????????????? | | ?????????????????????????????????????????????????? | | ?????????????????????????????????????????????????? | | ?????????????????????????????????????????????????? | | ?????????????????????????????????????????????????? | | ?????????????????????????????????????????????????? | | ?????????????????????????????????????????????????? | | ?????????????????????????????????????????????????? | | ?????????????????????????????????????????????????? | | ?????????????????????????????????????????????????? | | ?????????????????????????????????????????????????? | | ?????????????????????????????????????????????????? | | ?????????????????????????????????#???????????????? | | ??????????????????????????# ?????? ?######????#### | | ??????????????????????????? #????? ?# ##### | | ???????????????????????????# #????# # "" | | ???????????????????????????? ????? # "T | | ????????????????????????????? ???? # ##### | | ?????????????????????????????? #####"#% #######+## | | ??????????????????????????????#" # #[=# | | ??????????????????????????????#" # #%[# | | ???????????????????????????????# ?#**%# | | ?????????????#################### ###%%%# | | ?????????? [%= # %%%%=# | | ?????????? @* ; /%; ; | | ?????????? # ! =; # | | ?????????? # " ########+" | | ???????????############ ####### ###" !# # | | ?????????????????????? ????# ##" =# # | | ????????????????????? ????# ### # # | | ????????????????????# ????# #?# %" # | | ????????????????????# ????#####?# + # | | ????????????????????# g ??????????# # """" # | | ????????????????????# %g ??????????#% # """" # | | ????????????????????## gg #?????????"* " """ + | | ?????????????????????#gggg##?????????"[ = """" # | | ?????????????????????#gggg?????????? " "######## | | ?????????????????????# gg?????????? #??????? | | ?????????????????????#gggg?????????# " #??????? | | ???????????????????????ggg?????????# " ??????? | | ???????????????????????????????????###%%" #?????? | | ?????????????????????????????????????# #"""###### | | ?????????????????????????????????????# | | ?????????????????????????????????????# | | ?????????????????????????????????????# ##"#"##### | | ?????????????????????????????????????# %#? # ???? | | ?????????????????????????????????????# #?#??????? | | ???????????????????????????????????###"########### | | ???????????????????????????????????# | +----------------------------------------------------+ Best States ------------- Heat Dissipation 131 Coolant Potential 180 Energy Generation 89 Energy Capacity 2650 Matter Stores 300 Matter Capacity 600 Sight Range 22 Robot Scan Range 16 Terrain Scan Range 24 Terrain Scan Density 210 Jamming Range 14 Cloak Strength 3 Armor Coverage 1800 Resistance: TH 50 Power Shielding 66 Propulsion Shielding 33 Utility Shielding 90 Phase Shifting 15 Evasion (%) 64 Targeting Accuracy 12 Core Analysis 8 Armor Integrity Analysis 50 Recoil Reduction 6 Matter Filtering 50 Energy Filtering 30 Offensive Hacking 12 Defensive Hacking 14 Authchip Count 2 Trap Extractor Capacity 8 Item Schematics ----------------- None Robot Schematics ------------------ None Fabricated ------------ Mic. Nuclear Core | x2 | -7/Factory | Preloaded Imp. Force Field | x2 | -5/Factory | Authchip Centrium Heavy Treads | x1 | -5/Factory | Authchip Centrium Heavy Treads | x1 | -4/Factory Alien Tech Used ----------------- Integrated Dissipator Core Cannon Subatomic Replicator Core Stripper Transdimensional Reconstructor Spacefold Activator Integrity Redistributor Navigation Efficiency Matrix Core Reset Matrix Integrated Reactor High-powered Transdimensional Reconstructor Dimensional Node Initializer Achievements -------------- Beloved Pyromaniac Challenges ------------ None Game ------ Seed MomentumWaveSteel Manual? 0 Play Time 07:55:35 Cumulative 181.1 hours Start 2024.04.19 @ 18:37:00 End 2024.04.20 @ 02:47:39 Sessions 1 Manual Loads 0 Difficulty Rogue Special Mode None Game No. 71 Rogue 69 Adventurer 2 Explorer 0 Win Type - Total 5 Types 4/0/0/1/0/0/0/0/0 Lore% 63 Gallery% 76 Achievement% 63 Wizard Run 0 Options --------- Layout 2 ASCII 0 Keyboard 0 Movement Numpad Keybinds 0 Fullscreen 2 Font 32/SmallcapsGlow Map View 50x44 Zoom Use 0% Tactical HUD 1 Map Filters NONE Filters NONE Steam 1 RUN: 9c0cac1a-67e0-4947-b19f-f4607f707880